Cogmind - Beta 15 @@@ ROGUE MODE // 2025.08.10 @ 09:51:12 Player: C0-2MO Result: Destroyed by V290-i with Ragnarok Missile Launcher Performance ------------- Evolutions (7) 3500 Regions Visited (30) 6000 Robots Destroyed (125) 625 Value Destroyed (4947) 4947 Prototype IDs (150) 3000 Alien Tech Used (5) 1000 Bonus (29324) 29324 TOTAL SCORE: 48396 Bonus ------- High Alert Combat Kills 1015 Follower Combat Kills 4306 Entered Garrisons 600 Network Hubs Disabled 800 Registered with UFD 300 Met Optimus in HQ 500 Built Enhanced Grunts 300 A7 Reached Mainframe 300 Met R17 at Cetus 500 Used Core Reset Matrix 3000 Met R17 at Research 2000 Destroyed Superfortress 15000 Met Optimus at Protoforge 1000 Friendly Fire -297 Cogmind --------- Core Integrity 0/1300 Matter 300/300 Energy 7/100 System Corruption 1% Temperature Cool (0) Movement Flying (34) Location -3/Protoforge Parts ------- > --- POWER (2) -------- (None) > --- PROPULSION (9) --- Concept Combat Aerolev Unit Concept Combat Aerolev Unit Improved Diametric Drive Impulse Thruster Array Impulse Thruster Array > --- UTILITY (8) ------ Large Storage Unit Plexus Tether Experimental Active Sensor Suite Experimental Core Analyzer Graphene Brace Improved Hacking Suite Experimental System Purifier > --- WEAPON (2) ------- (None) > --- INVENTORY (15) --- Concept Antigrav Storage Unit Experimental Core Analyzer Precision Matter Filter Experimental Kinecellerator Experimental ECM Suite Experimental Reaction Control System Transdimensional Reconstructor Transdimensional Reconstructor Fusion Bomb Launcher Sigix Terminator (1) Nanosword Nanosword Peak State ------------ > --- POWER ------------ Improved Quantum Reactor > --- PROPULSION ------- Improved Diametric Drive Impulse Thruster Array Impulse Thruster Array Impulse Thruster Array Impulse Thruster Array > --- UTILITY ---------- Large Storage Unit Plexus Tether Experimental Active Sensor Suite Experimental Core Analyzer Graphene Brace Improved Hacking Suite Experimental System Purifier > --- WEAPON ----------- Concept XC Strikerail Compact Linear Accelerator > --- INVENTORY -------- Concept Combat Aerolev Unit Concept Combat Aerolev Unit Concept Antigrav Storage Unit Experimental Core Analyzer Precision Matter Filter Experimental Kinecellerator Experimental ECM Suite Experimental Reaction Control System Transdimensional Reconstructor Transdimensional Reconstructor Fusion Bomb Launcher Sigix Terminator Nanosword Nanosword [Rating: 184] Favorites ----------- Power Light Particle Reactor Engine Light Ion Engine Power Core Light Fission Core Reactor Light Particle Reactor Propulsion Q-thruster Treads Light Treads Hover Unit Airjet Flight Unit Q-thruster Utility Hacking Suite Device Structural Scanner Storage Medium Storage Unit Processor Advanced Signal Interpreter Hackware Hacking Suite Protection Experimental Propulsion Shielding Weapon Plasma Sword Energy Gun Advanced Variable Charge Gun Energy Cannon Matter Neutralizer Ballistic Gun Heavy Assault Rifle Ballistic Cannon Compact Linear Accelerator Launcher Precision Rocket Launcher Special Weapon Improved Remote Datajack Impact Weapon Power Maul Slashing Weapon Plasma Sword Build | -11 -10 -10 -9 -9 -9 -8 -8 -8 -8 -8 -6 -6 -6 -6 -6 -6 -5 -5 -5 -5 -4 -4 -4 -4 -4 -4 -4 -3 -3 -3 ------- Run | Yrd Mat Min Mat Min Exi Min Mat Sto Rec Scr Fac Was Fac Gar Fac Gar Fac Was Fac Gar Fac Was Fac Ext Cet Arc Hub Res Qua Frg Slots Evolved 14 | . . . 2 . . . 2 . . . 4 . . . . . 2 . . . 2 . . . . . . 2 . . Power 1 | . . . . . . . . . . . . . . . . . . . . . . . . . . . . 1 . . Propulsion 7 | . . . 1 . . . 1 . . . 2 . . . . . 1 . . . 1 . . . . . . 1 . . Utility 6 | . . . 1 . . . 1 . . . 2 . . . . . 1 . . . 1 . . . . . . . . . Weapon . | . . . . . . . . . . . . . . . . . . . . . . . . . . . . . . . Parts Attached 249 | 4 13 . 7 . . . 6 11 4 1 19 2 10 3 13 1 24 2 6 1 38 2 2 2 3 1 3 32 5 34 Power 29 | . 2 . 1 . . . 1 2 1 . 2 1 1 1 1 . 2 1 . 1 4 . . . . . . 3 . 5 Engine 6 | . 2 . 1 . . . 1 1 . . . . . . . . . 1 . . . . . . . . . . . . Core 11 | . . . . . . . . 1 1 . 2 1 1 . 1 . 2 . . 1 1 . . . . . . . . . Reactor 12 | . . . . . . . . . . . . . . 1 . . . . . . 3 . . . . . . 3 . 5 Propulsion 76 | 2 7 . 3 . . . 2 3 1 . 6 . 4 1 4 . 11 . 1 . 8 1 2 . . . 1 9 1 9 Treads 2 | 2 . . . . . . . . . . . . . . . . . . . . . . . . . . . . . . Leg . | . . . . . . . . . . . . . . . . . . . . . . . . . . . . . . . Wheel . | . . . . . . . . . . . . . . . . . . . . . . . . . . . . . . . Hover 4 | . 1 . . . . . 1 . . . . . . . . . . . . . . . . . . . . . . 2 Flight 70 | . 6 . 3 . . . 1 3 1 . 6 . 4 1 4 . 11 . 1 . 8 1 2 . . . 1 9 1 7 Utility 108 | 1 1 . 2 . . . 2 3 2 1 6 1 5 1 5 1 11 1 4 . 21 . . 1 1 1 2 17 3 15 Device 51 | 1 . . 2 . . . . . 1 . 2 1 2 1 3 . 6 1 2 . 11 . . . . 1 2 8 2 5 Storage 8 | . . . . . . . . 1 . 1 1 . . . . . . . . . 1 . . 1 . . . 3 . . Processor 13 | . . . . . . . 1 1 . . 1 . . . . . 1 . . . 2 . . . . . . 1 . 6 Hackware 26 | . 1 . . . . . 1 . 1 . 1 . 3 . 2 1 3 . 2 . 6 . . . . . . 4 1 . Protection 10 | . . . . . . . . 1 . . 1 . . . . . 1 . . . 1 . . . 1 . . 1 . 4 Artifact . | . . . . . . . . . . . . . . . . . . . . . . . . . . . . . . . Weapon 36 | 1 3 . 1 . . . 1 3 . . 5 . . . 3 . . . 1 . 5 1 . 1 2 . . 3 1 5 Energy Gun 1 | . . . . . . . . . . . . . . . . . . . . . . . . . 1 . . . . . Energy Cannon 5 | . . . . . . . . 1 . . 2 . . . . . . . . . . 1 . . . . . . 1 . Ballistic Gun 7 | 1 2 . . . . . . . . . 1 . . . . . . . . . . . . . 1 . . . . 2 Ballistic Cannon 1 | . . . . . . . . . . . . . . . . . . . . . . . . . . . . . . 1 Launcher 4 | . . . . . . . 1 1 . . . . . . . . . . . . 1 . . . . . . . . 1 Special Weapon 7 | . 1 . . . . . . . . . . . . . 1 . . . 1 . 2 . . 1 . . . 1 . . Impact Weapon 2 | . . . . . . . . . . . . . . . . . . . . . 1 . . . . . . 1 . . Slashing Weapon 9 | . . . 1 . . . . 1 . . 2 . . . 2 . . . . . 1 . . . . . . 1 . 1 Piercing Weapon . | . . . . . . . . . . . . . . . . . . . . . . . . . . . . . . . Special Melee Weapon . | . . . . . . . . . . . . . . . . . . . . . . . . . . . . . . . Unidentified Prototypes 29 | . . . 1 . . . 1 3 . . 3 1 . . 1 . . . . . 3 . . . 2 . . 11 1 2 Corrupted Parts 1 | . . . . . . . . . . . . . . . . . . . . . . . . . . . . . . 1 System Corruption 5 | . . . . . . . . . . . . . . . . . . . . . . . . . . . . . . 5 Parts Lost 85 | . . . 1 . . . 6 5 . . 3 . 3 . 2 2 12 . 5 . 9 . . . . . 6 2 . 29 Power 10 | . . . 1 . . . . 2 . . . . . . . . . . . . 2 . . . . . . . . 5 Propulsion 41 | . . . . . . . 5 1 . . 2 . 2 . 1 2 8 . 3 . 3 . . . . . 1 . . 13 Utility 28 | . . . . . . . 1 1 . . 1 . 1 . 1 . 4 . 2 . 3 . . . . . 4 1 . 9 Weapon 6 | . . . . . . . . 1 . . . . . . . . . . . . 1 . . . . . 1 1 . 2 Highest Loss Streak 9 | . . . 1 . . . 3 4 . . 2 . 2 . 1 2 5 . 3 . 3 . . . . . 2 1 . 9 To Critical Strikes . | . . . . . . . . . . . . . . . . . . . . . . . . . . . . . . . Average Backups 8 | 1 4 5 3 5 5 5 4 4 5 8 9 8 8 10 9 9 8 9 9 9 9 8 9 9 8 9 8 11 12 11 Power . | . . . . . . . . . . . . . 1 1 . 1 1 1 . 1 1 . . . . . . . . . Propulsion . | . 1 2 1 2 2 2 . . . . . . . 1 1 1 . . . . . 1 1 1 1 1 . 2 1 . Utility 3 | . 1 2 1 2 2 2 1 2 3 4 4 5 4 5 5 5 3 4 4 3 3 3 3 3 3 4 3 5 4 4 Weapon 2 | . 1 1 1 1 1 1 1 2 2 2 2 2 2 2 1 1 1 1 2 2 1 2 3 2 2 2 2 3 2 3 Tool/Special . | . . . . . . . . . . . . . . . . . . . . . . . . . . . . . . . Unused Backups 24 | . 1 . . . . . . 1 2 . 3 . 1 . 1 . . . 2 . 2 . . . . . . 1 3 7 Power 1 | . . . . . . . . . . . . . . . . . . . 1 . . . . . . . . . . . Propulsion 1 | . 1 . . . . . . . . . . . . . . . . . . . . . . . . . . . . . Utility 14 | . . . . . . . . . 2 . 3 . 1 . 1 . . . . . 1 . . . . . . . 2 4 Weapon 6 | . . . . . . . . 1 . . . . . . . . . . 1 . 1 . . . . . . 1 1 1 Tool/Special 2 | . . . . . . . . . . . . . . . . . . . . . . . . . . . . . . 2 Average Slot Usage (%) 85 | . 95 100 98 88 88 88 89 78 87 90 87 92 92 93 96 99 86 87 86 64 75 88 86 84 83 83 83 80 94 71 Engine 1 | . 11 14 10 . . . 7 2 . . . . . . . . . 3 5 . . . . . . . . . . . Core 2 | . . . . . . . . 2 6 9 6 6 6 4 5 6 5 1 . 4 2 . . . . . . . . . Reactor 2 | . . . . . . . . . . . . . . 1 . . . . . . 2 5 5 5 5 5 5 8 9 5 Flight 30 | . 25 28 32 33 33 33 33 31 36 36 35 40 39 40 39 39 34 34 32 17 23 31 28 26 26 26 26 26 38 27 Device 12 | . 14 14 21 22 22 22 17 4 5 9 11 10 13 14 13 13 16 17 16 11 10 5 10 7 5 5 13 14 18 9 Storage 4 | . . . . . . . . 2 9 9 6 6 6 6 6 6 5 5 5 5 5 5 5 5 5 5 5 4 4 4 Processor 5 | . . . . . . . 1 . . . 5 6 6 6 6 6 7 11 6 5 6 10 10 10 10 10 10 7 4 7 Hackware 11 | . 13 14 11 11 11 11 12 18 18 18 12 13 9 6 12 9 5 . 6 11 14 15 15 15 15 15 9 9 9 4 Protection 1 | . . . . . . . . 6 3 . 1 2 1 4 . 2 . 5 1 . . 5 . 2 5 4 1 . . 4 Ballistic Gun 2 | . 24 28 11 11 11 11 6 . . . . . . . . . . . . . . . . . 1 . 1 . . 1 Special Weapon 1 | . 1 . . . . . . . . . . . . . 3 6 1 . 1 . 2 3 5 4 3 4 3 1 1 . Slashing Weapon 5 | . . . 10 11 11 11 9 8 9 9 6 4 5 6 6 6 4 5 5 5 4 5 5 5 5 5 5 4 4 2 Peak Build Rating 184 | 4 10 10 16 14 14 14 24 30 31 30 61 63 64 70 72 75 79 75 80 55 126 128 125 132 134 134 133 155 159 184 Average Rating 83 | 2 9 10 13 14 14 14 19 24 27 29 48 59 59 65 66 71 62 72 70 54 95 124 124 126 132 132 124 138 157 144 On Entrance 64 | . 4 10 10 14 14 14 14 15 25 29 30 61 59 62 70 66 62 69 75 51 54 124 123 125 129 133 133 112 155 159 Naked Turns . | . . . . . . . . . . . . . . . . . . . . . . . . . . . . . . . Heaviest Build 68 | 3 8 8 10 7 7 7 15 12 14 18 25 28 27 34 34 30 29 28 33 26 35 43 34 43 43 42 40 61 65 68 Greatest Support 71 | 3 8 8 12 12 8 8 16 19 19 20 33 33 33 36 38 38 41 38 44 26 60 61 54 54 54 62 62 70 70 71 Greatest Overweight (x) 13 | . . . . . . . . . . . . . . . . . 1 . . . . . . . . 13 . 1 . 1 Average Overweight (x) . | . . . . . . . . . . . . . . . . . . . . . . . . . . 2 . . . . Largest Inventory Capacity 15 | 5 5 5 5 5 5 5 5 8 8 10 10 10 10 10 10 10 10 10 10 10 10 10 10 10 10 10 10 15 15 15 Average Capacity 10 | 5 5 5 5 5 5 5 5 5 8 9 10 10 10 10 10 10 10 10 10 10 10 10 10 10 10 10 10 13 15 15 Most Carried 15 | 2 5 5 5 5 5 5 5 5 7 9 10 10 10 10 10 10 10 10 10 10 10 10 10 10 10 10 10 15 15 15 Average Carried 9 | 1 4 5 3 5 5 5 4 4 5 8 9 9 8 9 9 9 8 9 9 9 9 9 10 10 9 10 9 11 14 13 Final Capacity 15 | 5 5 5 5 5 5 5 5 8 8 10 10 10 10 10 10 10 10 10 10 10 10 10 10 10 10 10 10 15 15 15 Final Carried 15 | 2 5 5 5 5 5 5 5 5 6 9 9 9 10 10 10 10 10 9 10 10 9 10 10 10 10 10 10 15 15 13 Class Distribution -------------------- 32% | Hacker-Scout 13% | Hacker-Sprinter 8% | Scavenger-Mutant 7% | Scavenger-Sprinter 6% | Hacker-Ninja 5% | Sprinter 4% | Scavenger-Ninja 4% | Scout 3% | Commander-Assassin 3% | Commander-Scout Dominant Class ---------------- Scavenger-Mutant | -10/Materials Scavenger-Mutant | -10/Mines Scavenger-Mutant | -9/Materials Scavenger-Sprinter | -9/Mines Scavenger-Mutant | -9/Exiles Scavenger-Mutant | -8/Mines Scavenger-Sprinter | -8/Materials Hacker-Sprinter | -8/Storage Hacker-Sprinter | -8/Recycling Hacker-Sprinter | -8/Scraptown Hacker-Scout | -6/Factory Hacker-Scout | -6/Waste Hacker-Scout | -6/Factory Sprinter | -6/Garrison Hacker-Scout | -6/Factory Sprinter | -6/Garrison Scavenger-Ninja | -5/Factory Scout | -5/Waste Hacker-Ninja | -5/Factory Hacker-Mutant | -5/Garrison Hacker-Scout | -4/Factory Hacker-Scout | -4/Waste Hacker-Scout | -4/Factory Hacker-Scout | -4/Extension Hacker-Scout | -4/Cetus Commander-Assassin | -4/Archives Machinist-Scout | -4/Hub_04(d) Hacker-Scout | -3/Research Hacker-Scout | -3/Quarantine Scavenger-Sprinter | -3/Protoforge Resources | -11 -10 -10 -9 -9 -9 -8 -8 -8 -8 -8 -6 -6 -6 -6 -6 -6 -5 -5 -5 -5 -4 -4 -4 -4 -4 -4 -4 -3 -3 -3 ----------- Run | Yrd Mat Min Mat Min Exi Min Mat Sto Rec Scr Fac Was Fac Gar Fac Gar Fac Was Fac Gar Fac Was Fac Ext Cet Arc Hub Res Qua Frg Matter Collected 5837 | 270 103 . 196 5 . . 65 105 40 10 280 125 136 . 243 . 461 . 367 . 600 317 28 258 132 83 108 596 160 1149 Remotely . | . . . . . . . . . . . . . . . . . . . . . . . . . . . . . . . Salvage Created 6668 | 93 145 . 50 . . . 121 57 306 . 108 541 170 . 173 . 485 . 323 . 478 565 28 358 104 167 215 706 37 1438 Parts 290 | 7 22 . 6 . . . 7 5 9 . 4 6 17 . 6 . 21 . 12 . 30 4 2 14 3 9 7 23 4 72 Haulers Intercepted 7 | . . . . . . . . . . . . . . . 1 . . . . . . . . . . . . 6 . . Recyclers Shooed 4 | 1 . . . . . . . . 1 . . . . . . . . . 1 . . . . . . . 1 . . . Parts Field Recycled . | . . . . . . . . . . . . . . . . . . . . . . . . . . . . . . . Retrieved Matter . | . . . . . . . . . . . . . . . . . . . . . . . . . . . . . . . Parts Self-Destructed . | . . . . . . . . . . . . . . . . . . . . . . . . . . . . . . . Prevented . | . . . . . . . . . . . . . . . . . . . . . . . . . . . . . . . Kills | -11 -10 -10 -9 -9 -9 -8 -8 -8 -8 -8 -6 -6 -6 -6 -6 -6 -5 -5 -5 -5 -4 -4 -4 -4 -4 -4 -4 -3 -3 -3 ------- Run | Yrd Mat Min Mat Min Exi Min Mat Sto Rec Scr Fac Was Fac Gar Fac Gar Fac Was Fac Gar Fac Was Fac Ext Cet Arc Hub Res Qua Frg Combat Hostiles Destroyed 63 | . 8 . . . . . 3 1 . . 3 2 3 . . . 4 . . . 5 2 . 1 1 . 1 . . 29 Melee 19 | . . . . . . . 2 1 . . 3 . 3 . . . 4 . . . . . . 1 . . 1 . . 4 Guns 22 | . 8 . . . . . . . . . . . . . . . . . . . . . . . . . . . . 14 AOE 21 | . . . . . . . 1 . . . . 2 . . . . . . . . 5 2 . . . . . . . 11 Classes Destroyed 21 | 2 3 . 1 . . . . . . . . 1 3 . 2 . . . . . 1 . . . . . 1 . . 7 Worker 4 | . . . . . . . . . . . . . . . . . . . . . 4 . . . . . . . . . Builder 7 | . . . 1 . . . . . 2 . . . . . 1 . 1 . . . 1 . 1 . . . . . . . Tunneler 1 | 1 . . . . . . . . . . . . . . . . . . . . . . . . . . . . . . Hauler 7 | . . . . . . . . . . . . . . . 1 . . . . . . . . . . . . 6 . . Recycler 15 | 1 . . . . . . 1 . 3 . . . . . . . 3 . 2 . 2 . . 2 . . 1 . . . Mechanic 2 | . . . . . . . . . . . . . . . 1 . . . . . . . . . . . . . . 1 Operator 17 | . 1 . 1 . . . . . . . . . 2 . . . . . 3 . 1 . . 1 . 5 . 2 1 . Drone 6 | . . . . . . . . . . . . . 1 . . . . . . . . . . . . . . . . 5 Watcher 8 | . 1 . 1 . . . . 1 . . 1 . . . . . . . . . . . . . . . . 1 . 3 Swarmer 27 | . 8 . . . . . 3 1 . . 3 . . . . . 4 . . . 5 . . 1 . . . . . 2 Cutter 1 | . . . . . . . . . . . . . . . . . . . . . . . . . . . 1 . . . Saboteur 1 | . . . . . . . . . . . . . . . . . . . . . . . . . . . . . . 1 Grunt 4 | . . . . . . . . . . . . . . . . . . . . . . . . . . . . . . 4 Protector 1 | . . . . . . . . . . . . . . . . . . . . . . . . . . . . . . 1 Researcher 1 | . . . . . . . . . . . . . . . . . . . . . . . . . . . . . . 1 Sentry 3 | . . . . . . . . . . . . . 1 . . . . . . . . . . . . . . . . 2 Hunter 5 | . . . . . . . . . . . . . . . . . . . . . . . . . . . . . . 5 Programmer 2 | . . . . . . . . . . . . . 1 . . . . . . . . . . . . . . . . 1 Compactor 4 | . . . . . . . . . . . . 2 . . . . . . . . . 2 . . . . . . . . Cetus Guard 1 | . . . . . . . . . . . . . . . . . . . . . . . . . 1 . . . . . Hotshot 2 | . . . . . . . . . . . . . . . . . . . . . . . . . . . . . . 2 Decapitator 3 | . . . . . . . . . . . . . . . . . . . . . . . . . . . . . . 3 Striker 1 | . . . . . . . . . . . . . . . . . . . . . . . . . . . . . . 1 Executioner 2 | . . . . . . . . . . . . . . . . . . . . . . . . . . . . . . 2 Wasp 1 | . . . . . . . . . . . . . . . . . . . . . . 1 . . . . . . . . Best Kill Streak 9 | 2 3 . 1 . . . 2 1 4 . 3 2 1 . 2 . 4 . 3 . 6 2 1 2 1 3 1 2 1 9 Combat Bots Only 8 | . 3 . . . . . 2 1 . . 3 2 1 . . . 4 . . . 3 2 . 1 1 . 1 . . 8 Max Kills in Single Turn 4 | 1 1 . 1 . . . 1 1 1 . 1 1 1 . 1 . 1 . 1 . 4 1 1 1 1 1 1 1 1 4 Gunslinging . | . . . . . . . . . . . . . . . . . . . . . . . . . . . . . . . Exploded 4 | . . . . . . . 1 . . . . 1 . . . . . . . . 2 1 . . . . . . . 4 Melee 1 | . . . . . . . 1 1 . . 1 . 1 . . . 1 . . . . . . 1 . . 1 . . 1 Uniques/NPCs Destroyed . | . . . . . . . . . . . . . . . . . . . . . . . . . . . . . . . Combat | -11 -10 -10 -9 -9 -9 -8 -8 -8 -8 -8 -6 -6 -6 -6 -6 -6 -5 -5 -5 -5 -4 -4 -4 -4 -4 -4 -4 -3 -3 -3 -------- Run | Yrd Mat Min Mat Min Exi Min Mat Sto Rec Scr Fac Was Fac Gar Fac Gar Fac Was Fac Gar Fac Was Fac Ext Cet Arc Hub Res Qua Frg Hostile Shots Fired 1115 | . 35 3 49 1 . . 63 74 . . 71 . 44 33 47 12 59 1 88 . 143 . . 14 2 . 37 14 4 321 Missed 586 | . 12 2 34 . . . 37 43 . . 37 . 28 22 25 6 27 . 57 . 79 . . 8 . . 23 10 3 133 Hits 529 | . 23 1 15 1 . . 26 31 . . 34 . 16 11 22 6 32 1 31 . 64 . . 6 2 . 14 4 1 188 Melee 4 | . . . . . . . 1 . . . . . . . . . . 1 . . . . . . . . 1 . . 1 Projectile 525 | . 23 1 15 1 . . 25 31 . . 34 . 16 11 22 6 32 . 31 . 64 . . 6 2 . 13 4 1 187 AOE 23 | . . . . . . . . . . . . . . . . . . . . . 3 . . . . . 2 . . 18 Critical Strikes 25 | . . . . . . . . 3 . . 5 . . . . . . . 1 . 2 . . . 1 . 3 . 1 9 Actively Blocked 11 | . . . . . . . . 2 . . . . . . . . . . . . . . . . . . 3 . . 6 Part Disruptions 1 | . . . . . . . . . . . . . . . . . . . . . . . . . . . . . . 1 Damage Taken 11675 | . 186 7 158 12 . . 388 432 . . 535 . 227 142 258 130 920 45 526 . 1400 . . 90 120 . 766 85 21 5227 Core 2708 | . 81 . 31 12 . . 176 168 . . 192 . . 23 101 76 203 32 40 . 210 . . 47 . . 156 . . 1160 Absorbed by Shields 137 | . . . . . . . . . . . 20 . . . . . . . . . . . . 41 31 . . . . 45 Redirected to Shielding 917 | . . . . . . . . 68 . . 64 . 6 18 . . . 13 130 . 117 . . 20 26 . 78 . . 377 Regen/Repaired (Parts) 1126 | . . . 7 . . . . 15 . . 54 51 145 . 5 . 141 . 77 . 163 290 . 20 32 . 15 111 . . Core Remaining (%) 68 | 100 . 67 . . . 89 . . . 37 . . . . . 53 . . . 72 . . . . . . 64 . . . Volleys Fired 264 | 11 25 . . . . . 2 . . . . 3 . 1 5 1 11 . 1 . 16 7 7 23 11 7 9 6 7 111 Largest 2 | 1 2 . . . . . 1 . . . . 1 . 1 1 1 1 . 1 . 1 1 1 1 1 1 1 1 1 1 Hottest 120 | 20 100 . . . . . 36 . . . . 43 . 43 5 43 5 . 7 . 43 43 7 120 120 35 35 10 105 58 Shots Fired 274 | 11 35 . . . . . 2 . . . . 3 . 1 5 1 11 . 1 . 16 7 7 23 11 7 9 6 7 111 Gun 152 | 11 32 . . . . . . . . . . . . . . . . . . . . . . . 1 2 6 . . 100 Cannon 17 | . . . . . . . . . . . . . . . . . . . . . . . . 5 6 . . . 1 5 Launcher 25 | . . . . . . . 2 . . . . 3 . 1 . 1 . . . . 5 7 . . . . . . . 6 Special 80 | . 3 . . . . . . . . . . . . . 5 . 11 . 1 . 11 . 7 18 4 5 3 6 6 . Kinetic 157 | 11 32 . . . . . . . . . . . . . . . . . . . . . . . 1 2 6 . . 105 Thermal 15 | . 3 . . . . . . . . . . . . . . . . . . . . . . 5 6 . . . 1 . Explosive 23 | . . . . . . . . . . . . 3 . 1 . 1 . . . . 5 7 . . . . . . . 6 Electromagnetic 2 | . . . . . . . 2 . . . . . . . . . . . . . . . . . . . . . . . Robot Hit Streak 35 | 3 9 . . . . . 2 . . . . 3 . . 1 . 3 . 2 . 4 4 5 5 6 6 6 2 4 35 Robot Miss Streak 5 | 2 5 . . . . . 1 . . . . . . . 1 . 2 . . . 3 1 4 1 2 1 1 1 2 2 Penetration Max 1 | . . . . . . . . . . . . . . . . . . . . . . . . . . . 1 . . 1 Secondary Targets 1 | . 1 . . . . . . . . . . . . . . . . . . . . . . . . . . . . . Max Gunslinging Chain 1 | . 1 . . . . . . . . . . . . . . . . . . . . . . . . . . . . . Shots Hit Robots 334 | 6 18 . 9 . . . 5 3 10 . 7 3 7 . 10 . 16 . 8 . 19 6 4 23 6 15 11 30 5 113 Core Hits 187 | 3 11 . 3 . . . 4 2 5 . 3 4 4 . 2 . 8 . 4 . 18 11 1 6 1 6 6 9 1 75 Critical Kills 5 | . 1 . . . . . . . . . . . . . . . . . . . . . . . . . . . . 4 Critical Parts Destroyed 7 | . . . . . . . . . . . . . . . . . . . . . . . . . . . . . . 7 Critical Strikes 16 | . 1 . . . . . . . 1 . . . . . 2 . . . . . . . . . . . . 1 . 11 Destroy 12 | . 1 . . . . . . . . . . . . . . . . . . . . . . . . . . . . 11 Sever 4 | . . . . . . . . . 1 . . . . . 2 . . . . . . . . . . . . 1 . . Melee Attacks 530 | . . . 19 . . 2 14 17 11 . 63 . 33 8 44 6 54 . 32 9 65 . 6 31 1 12 16 50 8 29 Impact 3 | . . . . . . . . . . . . . . . . . . . . . 3 . . . . . . . . . Slashing 527 | . . . 19 . . 2 14 17 11 . 63 . 33 8 44 6 54 . 32 9 62 . 6 31 1 12 16 50 8 29 Piercing . | . . . . . . . . . . . . . . . . . . . . . . . . . . . . . . . Sneak Attacks 53 | . . . 3 . . . . 2 5 . 1 . 4 . 4 . 4 . 3 . 3 . 1 3 . 6 1 8 . 5 Combat Hostiles 3 | . . . . . . . . . . . . . 3 . . . . . . . . . . . . . . . . . Follow-up Attacks . | . . . . . . . . . . . . . . . . . . . . . . . . . . . . . . . Damage Inflicted 19639 | 74 238 . 447 . . . 207 173 553 . 354 580 619 . 643 . 648 . 444 . 1815 1567 71 637 259 923 440 2086 68 6793 Guns 3610 | 74 238 . . . . . . . . . . . . . . . . . . . . . . . . 55 240 . . 3003 Cannons 295 | . . . . . . . . . . . . . . . . . . . . . . . . 128 167 . . . . . Explosions 5795 | . . . . . . . 71 . . . . 580 . . . . . . . . 945 1567 . . . . . . . 2632 Melee 9939 | . . . 447 . . . 136 173 553 . 354 . 619 . 643 . 648 . 444 . 870 . 71 509 92 868 200 2086 68 1158 Ramming . | . . . . . . . . . . . . . . . . . . . . . . . . . . . . . . . Kinetic 3610 | 74 238 . . . . . . . . . . . . . . . . . . . . . . . . 55 240 . . 3003 Thermal 295 | . . . . . . . . . . . . . . . . . . . . . . . . 128 167 . . . . . Explosive 5724 | . . . . . . . . . . . . 580 . . . . . . . . 945 1567 . . . . . . . 2632 Electromagnetic 71 | . . . . . . . 71 . . . . . . . . . . . . . . . . . . . . . . . Impact 130 | . . . . . . . . . . . . . . . . . . . . . 130 . . . . . . . . . Slashing 9809 | . . . 447 . . . 136 173 553 . 354 . 619 . 643 . 648 . 444 . 740 . 71 509 92 868 200 2086 68 1158 Piercing . | . . . . . . . . . . . . . . . . . . . . . . . . . . . . . . . Highest Corruption 16 | . 1 1 . . . . . . . . . . 3 1 2 3 16 4 5 . 2 2 2 2 2 2 11 3 . 6 Average Corruption 3 | . 1 1 . . . . . . . . . . 2 1 1 2 11 3 3 . 1 2 2 2 2 1 5 2 . 3 Corruption Purged 49 | . . . . . . . . . . . . . 3 . 1 . 17 1 11 . . . . . . 2 . 4 . 10 Corruption Blocked . | . . . . . . . . . . . . . . . . . . . . . . . . . . . . . . . Effects 91 | . 1 . . . . . . . . . . . 4 . 5 1 29 2 1 . 9 3 3 7 4 2 7 4 . 9 Message Errors 18 | . . . . . . . . . . . . . . . . . 7 1 . . . . 1 2 . 1 3 1 . 2 Matter Fused 17 | . . . . . . . . . . . . . 1 . 1 1 7 1 . . 2 . . 1 2 . 1 . . . Heat Flow Errors 14 | . . . . . . . . . . . . . . . 1 . 2 . 1 . 1 1 . 1 1 1 2 . . 3 Energy Discharges 11 | . 1 . . . . . . . . . . . 1 . . . 4 . . . 2 1 . . . . 1 . . 1 Parts Rejected 4 | . . . . . . . . . . . . . . . 2 . . . . . 2 . . . . . . . . . Parts Fused 1 | . . . . . . . . . . . . . . . . . . . . . 1 . . . . . . . . . Data Loss (minor) 13 | . . . . . . . . . . . . . . . 1 . 2 . . . 1 1 1 3 1 . . 1 . 2 Data Loss (major) 7 | . . . . . . . . . . . . . 2 . . . 3 . . . . . 1 . . . . 1 . . Alerts 2 | . . . . . . . . . . . . . . . . . . . . . . . . . . . . 1 . 1 Misdirections 4 | . . . . . . . . . . . . . . . . . 4 . . . . . . . . . . . . . Overload Shots . | . . . . . . . . . . . . . . . . . . . . . . . . . . . . . . . Overflow Damage 1845 | . . . 121 . . . . . 88 . 69 . 179 . 169 . 33 . 111 . 182 . . 97 . 221 . 220 . 355 Projectiles . | . . . . . . . . . . . . . . . . . . . . . . . . . . . . . . . Explosions 131 | . . . . . . . . . . . . . . . . . . . . . 52 . . . . . . . . 79 Melee 1714 | . . . 121 . . . . . 88 . 69 . 179 . 169 . 33 . 111 . 130 . . 97 . 221 . 220 . 276 Knockbacks 1 | . . . . . . . . . . . . . . . . . . . . . 1 . . . . . . . . . Impact 1 | . . . . . . . . . . . . . . . . . . . . . 1 . . . . . . . . . Kinetic . | . . . . . . . . . . . . . . . . . . . . . . . . . . . . . . . Secondary . | . . . . . . . . . . . . . . . . . . . . . . . . . . . . . . . Self-Inflicted Damage 271 | . . . . . . . . . . . . . . . . . . . . . 84 . . . . . . . . 187 Shots 4 | . . . . . . . . . . . . . . . . . . . . . 2 . . . . . . . . 2 Rammed . | . . . . . . . . . . . . . . . . . . . . . . . . . . . . . . . Targets Rammed . | . . . . . . . . . . . . . . . . . . . . . . . . . . . . . . . Kicked . | . . . . . . . . . . . . . . . . . . . . . . . . . . . . . . . Crushed . | . . . . . . . . . . . . . . . . . . . . . . . . . . . . . . . Highest Temperature 311 | . 58 . . . . . 9 15 . . 86 158 240 231 304 24 218 . 122 . 179 136 . 308 311 225 283 307 . 161 Average Temperature 54 | . 13 . . . . . 6 6 . . 20 61 96 62 60 9 86 . 23 . 35 53 . 136 137 82 45 52 . 78 Received Heat Transfer 1270 | . 6 . 48 6 . . 180 126 . . 169 . 36 57 57 39 . . 99 . 126 . . . 9 . . 9 . 303 Effects 2 | . . . . . . . . . . . . . . . 2 . . . . . . . . . . . . . . . Interference 2 | . . . . . . . . . . . . . . . 2 . . . . . . . . . . . . . . . Siege Activations . | . . . . . . . . . . . . . . . . . . . . . . . . . . . . . . . Martial Activations . | . . . . . . . . . . . . . . . . . . . . . . . . . . . . . . . Shielding Activations . | . . . . . . . . . . . . . . . . . . . . . . . . . . . . . . . Robots Disrupted . | . . . . . . . . . . . . . . . . . . . . . . . . . . . . . . . Combat Hostiles . | . . . . . . . . . . . . . . . . . . . . . . . . . . . . . . . Robots Corrupted 1 | . . . . . . . . . . . . . . . . . . . . . 1 . . . . . . . . . Combat Hostiles . | . . . . . . . . . . . . . . . . . . . . . . . . . . . . . . . Parts Fried . | . . . . . . . . . . . . . . . . . . . . . . . . . . . . . . . Impact Corruptions 3 | . . . . . . . . . . . . . . . . . . . . . 3 . . . . . . . . . Robots Melted 1 | . . . . . . . . . . . . . . . . . . . . . . . . . 1 . . . . . Combat Hostiles 1 | . . . . . . . . . . . . . . . . . . . . . . . . . 1 . . . . . Parts Melted 2 | . . . . . . . . . . . . . . . . . . . . . . . . . 2 . . . . . Heat Transferred 259 | . . . . . . . . . . . . . . . . . . . . . . . . 111 148 . . . . . Parts Sabotaged . | . . . . . . . . . . . . . . . . . . . . . . . . . . . . . . . Parts Stolen . | . . . . . . . . . . . . . . . . . . . . . . . . . . . . . . . Parts Stripped . | . . . . . . . . . . . . . . . . . . . . . . . . . . . . . . . Power Chain Reactions 1 | . . . . . . . . . . . . . . . 1 . . . . . . . . . . . . . . . Alert | -11 -10 -10 -9 -9 -9 -8 -8 -8 -8 -8 -6 -6 -6 -6 -6 -6 -5 -5 -5 -5 -4 -4 -4 -4 -4 -4 -4 -3 -3 -3 ------- Run | Yrd Mat Min Mat Min Exi Min Mat Sto Rec Scr Fac Was Fac Gar Fac Gar Fac Was Fac Gar Fac Was Fac Ext Cet Arc Hub Res Qua Frg Maximum Alert Level 4 | . 1 . 1 . . . 1 2 1 . 1 . 2 2 2 1 1 . . . 1 . . 3 2 1 2 2 1 4 Low Security (%) 56 | 100 99 100 68 100 . 100 76 9 88 . 88 100 8 . . . 96 100 100 100 85 100 100 32 . 41 29 . 81 4 Level 1 21 | . . . 31 . . . 23 35 11 . 11 . 9 . 86 100 3 . . . 14 . . 33 12 58 29 51 18 18 Level 2 15 | . . . . . . . . 54 . . . . 82 100 13 . . . . . . . . 18 87 . 40 48 . 13 Level 3 1 | . . . . . . . . . . . . . . . . . . . . . . . . 15 . . . . . 13 Level 4 4 | . . . . . . . . . . . . . . . . . . . . . . . . . . . . . . 49 Level 5 . | . . . . . . . . . . . . . . . . . . . . . . . . . . . . . . . High Security . | . . . . . . . . . . . . . . . . . . . . . . . . . . . . . . . Max Security . | . . . . . . . . . . . . . . . . . . . . . . . . . . . . . . . Peak Influence 1221 | 10 202 39 364 146 . 2 295 621 294 . 361 164 695 655 451 383 227 . 74 73 357 127 108 789 567 361 596 551 341 1221 Initial 481 | . . 39 14 141 . . . 115 234 . . 124 86 481 343 237 190 . . 4 37 85 28 23 419 214 25 302 249 27 Average 250 | 1 120 39 133 138 . . 102 415 35 . 89 141 532 572 345 323 82 . 13 57 95 74 36 326 451 224 311 379 137 833 Influence Increases 13513 | 10 447 . 519 15 . 2 511 916 132 . 723 60 1146 174 520 146 376 . 221 69 1229 126 163 1139 398 227 1269 677 322 1976 Destroy 0b10 Robot/C 3160 | . 160 . . . . . 60 220 . . 60 . 460 . . . 80 . . . 200 . 20 400 160 80 300 140 . 820 Destroy 0b10 Robot/NC 460 | 10 10 . 15 . . . 5 5 30 . 5 . 35 . 15 . 20 . 25 . 55 . 10 55 10 25 25 45 5 55 Destroy Leader 532 | . 32 . 2 . . . 10 52 . . 12 . 100 . 2 . 10 . . . 34 . 10 42 . . 86 54 . 86 Allied During Kill 1557 | . . . . . . . . 43 . . . . 117 . . . . . . . 23 . 40 450 170 105 367 68 . 174 Successful Hack 1100 | . 17 . 27 . . . 22 14 11 . 76 . 61 12 96 . 68 . 47 . 122 . 39 27 . . 32 77 193 159 Select Force Hacks 420 | . 60 . 30 . . . 30 . 90 . . . 50 . 80 . . . . . . . . . . . 50 . . 30 Disable Machine 555 | . . . . . . . . 30 . . 15 . 60 . 45 . 15 . 15 . 90 . . . 15 15 90 . 75 90 Anti-Garrison Action 650 | . . . . . . . . . . . . . . 100 . 100 . . . 50 . . . . . . . 200 . 200 Destroy Structure 1254 | . 3 . 10 . . 2 9 12 1 . 45 45 128 47 27 46 78 . 44 19 210 126 44 120 28 2 94 48 4 62 Partial Spotted 840 | . 15 . 30 . . . 75 120 . . 90 15 15 . 60 . 45 . 15 . 90 . . 45 . . 90 30 15 90 Lose Combat Pursuer 2985 | . 150 . 405 15 . . 300 420 . . 420 . 120 15 195 . 60 . 75 . 405 . . . 15 . 135 15 30 210 Influence Decreases 12350 | 10 347 61 194 233 146 2 236 590 733 . 368 291 582 207 836 122 739 . 214 3 1057 330 156 438 610 689 768 808 718 862 Entered New Map 3477 | . . 61 25 223 146 . . 160 367 . . 231 38 207 312 102 173 . . 3 36 160 13 25 330 323 50 274 196 22 Time Decay 5554 | 10 347 . 159 10 . 2 156 180 89 . 328 60 334 . 334 . 459 . 204 . 483 110 135 342 170 326 170 434 222 490 Search Patrol Dispatched 150 | . . . . . . . . . . . . . . . 150 . . . . . . . . . . . . . . . Lost Part 745 | . . . 10 . . . 60 50 . . 20 . 30 . 20 20 107 . 10 . 48 . . . . . 60 20 . 290 Lost Ally 1111 | . . . . . . . 20 200 . . 20 . 180 . 20 . . . . . 40 60 . 71 110 40 210 80 . 60 Purge Threat 1313 | . . . . . . . . . 277 . . . . . . . . . . . 450 . 8 . . . 278 . 300 . Squads Dispatched 147 | . 2 . 3 . . . 4 5 . . 14 . 18 . 18 . 17 . 13 . 21 . 2 3 . . 6 11 1 9 Investigation 96 | . 2 . 3 . . . 1 2 . . 12 . 12 . 13 . 14 . 10 . 13 . 2 1 . . 2 4 . 5 Extermination 22 | . . . . . . . . . . . 2 . 3 . 3 . 3 . 3 . 6 . . . . . 1 . 1 . Reinforcement 25 | . . . . . . . 3 1 . . . . 2 . 2 . . . . . 2 . . 2 . . 2 7 . 4 Assault 1 | . . . . . . . . . . . . . 1 . . . . . . . . . . . . . . . . . Garrison 3 | . . . . . . . . 2 . . . . . . . . . . . . . . . . . . 1 . . . Intercept . | . . . . . . . . . . . . . . . . . . . . . . . . . . . . . . . Searches Triggered 1 | . . . . . . . . . . . . . . . 1 . . . . . . . . . . . . . . . Construction Impeded 3 | . . . . . . . . . . . . . . . 1 . . . . . . . . 1 . . . 1 . . Haulers Reinforced 3 | . . . . . . . . . . . . . . . . . . . . . . . . . . . . 3 . . Active Scanning Responses . | . . . . . . . . . . . . . . . . . . . . . . . . . . . . . . . Cargo Convoy Interrupts . | . . . . . . . . . . . . . . . . . . . . . . . . . . . . . . . Stealth | -11 -10 -10 -9 -9 -9 -8 -8 -8 -8 -8 -6 -6 -6 -6 -6 -6 -5 -5 -5 -5 -4 -4 -4 -4 -4 -4 -4 -3 -3 -3 --------- Run | Yrd Mat Min Mat Min Exi Min Mat Sto Rec Scr Fac Was Fac Gar Fac Gar Fac Was Fac Gar Fac Was Fac Ext Cet Arc Hub Res Qua Frg Distress Signals 35 | . 1 . 1 . . . 4 . . . 1 . 3 . 4 . 1 . 2 . 6 . . . 2 1 3 3 . 3 Communications Jammed . | . . . . . . . . . . . . . . . . . . . . . . . . . . . . . . . Distress Signals . | . . . . . . . . . . . . . . . . . . . . . . . . . . . . . . . Times Spotted 706 | . 22 3 31 2 . . 48 43 . . 44 6 24 15 36 13 41 5 51 . 68 6 2 16 11 8 42 15 5 149 Peak Tracking Total 23 | . 7 3 9 2 . . 23 12 . . 10 6 8 17 9 18 9 5 15 . 18 3 1 5 5 1 15 5 1 14 Tactical Retreats 108 | . 5 . 9 1 . . 6 10 . . 10 . 5 1 8 . 13 . 12 . 12 . . . 1 . 2 2 2 9 Traps | -11 -10 -10 -9 -9 -9 -8 -8 -8 -8 -8 -6 -6 -6 -6 -6 -6 -5 -5 -5 -5 -4 -4 -4 -4 -4 -4 -4 -3 -3 -3 ------- Run | Yrd Mat Min Mat Min Exi Min Mat Sto Rec Scr Fac Was Fac Gar Fac Gar Fac Was Fac Gar Fac Was Fac Ext Cet Arc Hub Res Qua Frg Traps Triggered 29 | . 1 . . . . . . . . . 2 . 1 3 2 3 3 . . 5 1 . . 2 . . . . 1 5 Indirectly . | . . . . . . . . . . . . . . . . . . . . . . . . . . . . . . . Trap Hack Attempts . | . . . . . . . . . . . . . . . . . . . . . . . . . . . . . . . Triggered . | . . . . . . . . . . . . . . . . . . . . . . . . . . . . . . . Disarmed 3 | . . . . . . . . . . . . . 3 . . . . . . . . . . . . . . . . . Reprogrammed . | . . . . . . . . . . . . . . . . . . . . . . . . . . . . . . . Reused . | . . . . . . . . . . . . . . . . . . . . . . . . . . . . . . . Traps Extracted . | . . . . . . . . . . . . . . . . . . . . . . . . . . . . . . . Installed . | . . . . . . . . . . . . . . . . . . . . . . . . . . . . . . . Triggered . | . . . . . . . . . . . . . . . . . . . . . . . . . . . . . . . Machines | -11 -10 -10 -9 -9 -9 -8 -8 -8 -8 -8 -6 -6 -6 -6 -6 -6 -5 -5 -5 -5 -4 -4 -4 -4 -4 -4 -4 -3 -3 -3 ---------- Run | Yrd Mat Min Mat Min Exi Min Mat Sto Rec Scr Fac Was Fac Gar Fac Gar Fac Was Fac Gar Fac Was Fac Ext Cet Arc Hub Res Qua Frg Machines Disabled 47 | . . . . . . . . 2 . . 1 . 4 3 3 2 1 . 1 1 7 . . 1 1 1 6 . 5 8 Max in Single Turn 2 | . . . . . . . . 1 . . 1 . 1 2 1 2 1 . 1 1 2 . . 1 1 . 1 . 1 1 Garrison Access 12 | . . . . . . . 1 1 . . 3 . . . . . 1 . . . 2 . . . . . 1 2 . 1 Garrison Relay 1 | . . . . . . . . . . . . . . . . . . . . 1 . . . . . . . . . . Phase Generator 2 | . . . . . . . . . . . . . . 1 . 1 . . . . . . . . . . . . . . Network Hub 4 | . . . . . . . . . . . . . . . . . . . . . . . . . . . 4 . . . Machines Repaired . | . . . . . . . . . . . . . . . . . . . . . . . . . . . . . . . Machines Dismantled 4 | . . . . . . . . . . . . . . . . . . . . . . . . . 1 . 3 . . . Machines Sabotaged 1 | . . . . . . . . . . . . . . . . . . . . . . . . . . . 1 . . . Overloaded Fab Kills 1 | . . . . . . . . . . . . . . . 1 . . . . . . . . . . . . . . . Hacking | -11 -10 -10 -9 -9 -9 -8 -8 -8 -8 -8 -6 -6 -6 -6 -6 -6 -5 -5 -5 -5 -4 -4 -4 -4 -4 -4 -4 -3 -3 -3 --------- Run | Yrd Mat Min Mat Min Exi Min Mat Sto Rec Scr Fac Was Fac Gar Fac Gar Fac Was Fac Gar Fac Was Fac Ext Cet Arc Hub Res Qua Frg Machines Accessed 297 | . 9 . 10 . 1 . 9 12 8 9 30 . 28 2 26 1 28 . 24 . 33 . 8 9 2 . 11 10 13 14 Terminals 164 | . 7 . 7 . . . 7 10 5 . 12 . 14 2 10 1 12 . 10 . 16 . 5 8 2 . 10 4 13 9 Fabricators 15 | . . . . . . . . . . . 2 . 3 . 2 . 4 . 1 . 2 . . . . . . 1 . . Repair Stations 18 | . . . 2 . . . . 1 . . 2 . 1 . 1 . 3 . 3 . 3 . 1 . . . . 1 . . Recycling Units 62 | . 2 . 1 . . . 1 . 3 . 8 . 8 . 8 . 8 . 7 . 8 . 2 1 . . . 2 . 3 Scanalyzers 10 | . . . . . . . . . . . 2 . 1 . 3 . . . 2 . 1 . . . . . . . . 1 Garrison Access 18 | . . . . . . . 1 1 . . 4 . 1 . 2 . 1 . 1 . 3 . . . . . 1 2 . 1 Total Hacks 959 | . 29 . 31 . 10 . 35 36 29 40 81 . 61 5 69 3 78 . 49 . 127 . 35 26 7 . 45 44 54 65 Successful 605 | . 15 . 21 . 10 . 22 24 20 40 59 . 39 2 45 1 42 . 31 . 81 . 22 22 4 . 26 13 31 35 Failed 351 | . 14 . 10 . . . 12 12 8 . 22 . 22 3 24 2 35 . 18 . 46 . 13 4 3 . 19 31 23 30 Catastrophic 45 | . 1 . . . . . 3 . . . 1 . 3 1 1 1 8 . 4 . 3 . 2 . . . 4 7 3 3 Database Lockouts 3 | . . . . . . . 1 . 1 . . . . . . . 1 . . . . . . . . . . . . . Manual 645 | . 24 . 25 . . . 31 30 24 . 51 . 45 4 45 3 54 . 36 . 77 . 28 21 1 . 34 30 34 48 Terminals 646 | . 27 . 25 . . . 33 34 21 . 41 . 33 5 35 3 37 . 30 . 83 . 30 25 7 . 44 25 54 54 Fabricators 44 | . . . . . . . . . . . 4 . 7 . 3 . 14 . 3 . 11 . . . . . . 2 . . Repair Stations 53 | . . . 5 . . . . 1 . . 4 . 6 . 1 . 10 . 4 . 9 . 3 . . . . 10 . . Recycling Units 100 | . 2 . 1 . . . 1 . 8 . 14 . 10 . 12 . 16 . 7 . 13 . 2 1 . . . 5 . 8 Scanalyzers 37 | . . . . . . . . . . . 13 . 3 . 14 . . . 4 . 2 . . . . . . . . 1 Garrison Access 29 | . . . . . . . 1 1 . . 5 . 2 . 4 . 1 . 1 . 9 . . . . . 1 2 . 2 Terminal Hacks 183 | . 5 . 6 . 10 . 4 6 5 40 10 . 3 1 5 . 6 . 6 . 20 . 9 8 4 . 9 . 17 9 Record 57 | . . . . . 10 . . . . 39 . . . . . . . . . . 1 . . . 4 . . . 3 . Part Schematic 6 | . . . . . . . . . 1 . 1 . . . . . 1 . . . 2 . . 1 . . . . . . Robot Analysis 11 | . 2 . 2 . . . 1 . . . 1 . . . . . . . 1 . 1 . . . . . . . 1 2 Prototype ID Bank 10 | . . . . . . . 1 . . . 2 . . . . . . . . . 1 . 1 2 . . 1 . 1 1 Open Door 5 | . . . . . . . . 3 . . . . . . . . . . . . . . . 1 . . . . 1 . Branch Access Points 3 | . . . 1 . . . 1 . . . . . . . . . . . . . . . . . . . . . 1 . Machine Index 3 | . . . . . . . . . . . . . . . . . . . . . 1 . 1 . . . . . . 1 Terminal Index 13 | . 1 . 1 . . . 1 . 1 . 1 . 1 . . . 1 . 1 . 1 . 1 1 . . 1 . 1 . Fabricator Index 2 | . . . . . . . . . . . . . . . . . 1 . . . 1 . . . . . . . . . Recycling Unit Index 3 | . . . . . . . . . . . . . . . . . . . . . . . 1 1 . . 1 . . . Scanalyzer Index 3 | . . . . . . . . . . . 1 . . . 1 . . . . . 1 . . . . . . . . . Garrison Index 1 | . . . . . . . . . . . 1 . . . . . . . . . . . . . . . . . . . Alert Level 7 | . . . . . . . . . 1 . 1 . . . 1 . 1 . 1 . 1 . . . . . . . 1 . Unreport Threat 10 | . . . . . . . . . 2 . . . . . . . . . . . 3 . 1 . . . 2 . 2 . Locate Traps 10 | . . . . . . . . 1 . . . . 1 . 2 . . . 2 . 1 . 1 . . . . . 2 . Disarm Traps 1 | . . . . . . . . . . . . . 1 . . . . . . . . . . . . . . . . . Investigation Status 1 | . . . 1 . . . . . . . . . . . . . . . . . . . . . . . . . . . Recall Extermination 2 | . . . . . . . . . . . . . . . . . . . . . 1 . . . . . . . 1 . Hauler Manifests 1 | . . . . . . . . . . . . . . . . . . . . . 1 . . . . . . . . . Registered Components 4 | . 1 . . . . . . . . . 1 . . . . . . . . . . . 1 . . . . . . 1 Registered Prototypes 1 | . . . . . . . . . . . . . . . . . . . . . 1 . . . . . . . . . Zone Layout 27 | . 1 . 1 . . . . 2 . . 1 . . . 1 . 2 . 1 . 3 . 2 2 . . 4 . 3 4 Garrison Registry 1 | . . . . . . . . . . . . . . 1 . . . . . . . . . . . . . . . . Proto ID Catalog 1 | . . . . . . . . . . 1 . . . . . . . . . . . . . . . . . . . . Fabricator Hacks 26 | . . . . . . . . . . . 2 . 5 . 1 . 7 . 1 . 8 . . . . . . 2 . . Network Status 2 | . . . . . . . . . . . . . 1 . . . 1 . . . . . . . . . . . . . Load Schematic 15 | . . . . . . . . . . . 2 . 2 . 1 . 4 . 1 . 4 . . . . . . 1 . . Build 9 | . . . . . . . . . . . . . 2 . . . 2 . . . 4 . . . . . . 1 . . Repair Station Hacks 23 | . . . 3 . . . . . . . 4 . 4 . . . 7 . . . 2 . . . . . . 3 . . Scan Component 13 | . . . 2 . . . . . . . 2 . 2 . . . 4 . . . 1 . . . . . . 2 . . Repair 10 | . . . 1 . . . . . . . 2 . 2 . . . 3 . . . 1 . . . . . . 1 . . Recycling Unit Hacks 4 | . . . . . . . . . 3 . . . . . . . . . . . 1 . . . . . . . . . Retrieve Matter 1 | . . . . . . . . . . . . . . . . . . . . . 1 . . . . . . . . . Retrieve Components 3 | . . . . . . . . . 3 . . . . . . . . . . . . . . . . . . . . . Scanalyzer 31 | . . . . . . . . . . . 11 . 2 . 13 . . . 3 . 2 . . . . . . . . . Insert Component 15 | . . . . . . . . . . . 5 . 1 . 6 . . . 2 . 1 . . . . . . . . . Analyze 16 | . . . . . . . . . . . 6 . 1 . 7 . . . 1 . 1 . . . . . . . . . Garrison Access Hacks 13 | . . . . . . . 1 1 . . 3 . 1 . 1 . 1 . 1 . 2 . . . . . 1 1 . . Unlock Access 3 | . . . . . . . . . . . . . 1 . 1 . . . 1 . . . . . . . . . . . Seal Access 10 | . . . . . . . 1 1 . . 3 . . . . . 1 . . . 2 . . . . . 1 1 . . Unauthorized Hacks 325 | . 10 . 12 . . . 17 17 12 . 29 . 24 1 25 1 21 . 20 . 46 . 13 14 . . 16 7 14 26 Terminals 240 | . 8 . 11 . . . 16 16 9 . 19 . 13 1 13 1 10 . 10 . 34 . 10 13 . . 16 5 14 21 Track 30 | . 1 . 2 . . . 2 3 . . 2 . . . . . 1 . 2 . 6 . 1 2 . . 3 . 3 2 Assimilate 22 | . . . . . . . 2 1 . . 2 . 1 . 2 . 1 . . . 2 . . 1 . . 3 . 2 5 Botnet 73 | . 2 . 3 . . . 5 3 4 . 8 . 6 . 6 . 3 . 3 . 11 . 4 3 . . 1 1 4 6 Disrupt 18 | . . . 1 . . . 1 3 . . 2 . . . . . . . . . 4 . . 2 . . 2 1 . 2 Skim 93 | . 5 . 5 . . . 6 6 5 . 5 . 6 . 5 . 5 . 5 . 11 . 5 5 . . 5 3 5 6 Sabotage 2 | . . . . . . . . . . . . . . . . . . . . . . . . . . . 2 . . . Override 2 | . . . . . . . . . . . . . . 1 . 1 . . . . . . . . . . . . . . Fabricators 12 | . . . . . . . . . . . 2 . 2 . 2 . 3 . 1 . 2 . . . . . . . . . Prioritize 4 | . . . . . . . . . . . . . 1 . . . 2 . . . 1 . . . . . . . . . Overload 1 | . . . . . . . . . . . . . . . 1 . . . . . . . . . . . . . . . Download 1 | . . . . . . . . . . . . . 1 . . . . . . . . . . . . . . . . . Recompile 6 | . . . . . . . . . . . 2 . . . 1 . 1 . 1 . 1 . . . . . . . . . Repair Stations 8 | . . . . . . . . 1 . . . . . . 1 . 1 . 2 . 2 . 1 . . . . . . . Mechanics 1 | . . . . . . . . . . . . . . . . . . . . . . . 1 . . . . . . . Patch 7 | . . . . . . . . 1 . . . . . . 1 . 1 . 2 . 2 . . . . . . . . . Recycling Units 60 | . 2 . 1 . . . 1 . 3 . 8 . 8 . 8 . 7 . 7 . 8 . 2 1 . . . 1 . 3 Tunnel 7 | . 2 . 1 . . . 1 . 3 . . . . . . . . . . . . . . . . . . . . . Fedlink 50 | . . . . . . . . . . . 8 . 8 . 8 . 7 . 7 . 8 . 2 1 . . . . . 1 Scrapoids 1 | . . . . . . . . . . . . . . . . . . . . . . . . . . . . 1 . . Scraphulk 2 | . . . . . . . . . . . . . . . . . . . . . . . . . . . . . . 2 Scanalyzers 3 | . . . . . . . . . . . . . 1 . 1 . . . . . . . . . . . . . . 1 Extract 3 | . . . . . . . . . . . . . 1 . 1 . . . . . . . . . . . . . . 1 Garrison Access 2 | . . . . . . . . . . . . . . . . . . . . . . . . . . . . 1 . 1 Jam 2 | . . . . . . . . . . . . . . . . . . . . . . . . . . . . 1 . 1 Data Cores Recovered 6 | . 1 . . . . . . . . . . . 1 . . . . . 2 . . . . . . . 1 . 1 . Used 2 | . . . . . . . . . . . . . 1 . . . . . 1 . . . . . . . . . . . Hacking Detections 189 | . 7 . 9 . . . 7 8 5 . 20 . 19 1 16 1 18 . 13 . 21 . 5 6 2 . 5 6 9 11 Full Trace Events 17 | . 1 . 2 . . . . 1 . . 2 . 2 . 1 . 5 . . . 2 . . . . . . 1 . . Feedback Events 4 | . . . . . . . . . . . . . . . 1 . 2 . . . . . . . . . . 1 . . Corruption 1 | . . . . . . . . . . . . . . . . . . . . . . . . . . . . 1 . . Hackware Fried 3 | . . . . . . . . . . . . . . . 1 . 2 . . . . . . . . . . . . . Feedback Blocked . | . . . . . . . . . . . . . . . . . . . . . . . . . . . . . . . Robot Schematics Acquired 3 | . . . . . . . . . . . . . . . . . . . . . . . . . . . . . . 3 Robots Built 2 | . . . . . . . . . . . . . . . . . . . . . 2 . . . . . . . . . Authchips . | . . . . . . . . . . . . . . . . . . . . . . . . . . . . . . . Time 46 | . . . . . . . . . . . . . . . . . . . . . 46 . . . . . . . . . Total Robot Build Rating 14 | . . . . . . . . . . . . . . . . . . . . . 14 . . . . . . . . . Part Schematics Acquired 36 | . . . . . . . . . 1 . 5 . 3 . 8 . 1 . 1 . 3 . . 1 . . . . . 13 Parts Built 13 | . . . . . . . . . . . . . 3 . . . 4 . . . 5 . . . . . . 1 . . Authchips 7 | . . . . . . . . . . . . . 2 . . . 2 . . . 2 . . . . . . 1 . . Time 327 | . . . . . . . . . . . . . 64 . . . 111 . . . 102 . . . . . . 50 . . Total Part Build Rating 81 | . . . . . . . . . . . . . 13 . . . 26 . . . 37 . . . . . . 5 . . Parts Repaired 10 | . . . 1 . . . . . . . 2 . 2 . . . 3 . . . 1 . . . . . . 1 . . Time 374 | . . . 26 . . . . . . . 88 . 47 . . . 138 . . . 28 . . . . . . 47 . . Parts Recycled . | . . . . . . . . . . . . . . . . . . . . . . . . . . . . . . . Recycled Matter . | . . . . . . . . . . . . . . . . . . . . . . . . . . . . . . . Retrieved Matter . | . . . . . . . . . . . . . . . . . . . . . . . . . . . . . . . Retrieved Components 5 | . . . . . . . . . 5 . . . . . . . . . . . . . . . . . . . . . Parts Scanalyzed 13 | . . . . . . . . . . . 4 . 1 . 6 . . . 1 . 1 . . . . . . . . . Part Schematics Acquired 13 | . . . . . . . . . . . 4 . 1 . 6 . . . 1 . 1 . . . . . . . . . Parts Damaged 3 | . . . . . . . . . . . 1 . . . 1 . . . 1 . . . . . . . . . . . Bothacking | -11 -10 -10 -9 -9 -9 -8 -8 -8 -8 -8 -6 -6 -6 -6 -6 -6 -5 -5 -5 -5 -4 -4 -4 -4 -4 -4 -4 -3 -3 -3 ------------ Run | Yrd Mat Min Mat Min Exi Min Mat Sto Rec Scr Fac Was Fac Gar Fac Gar Fac Was Fac Gar Fac Was Fac Ext Cet Arc Hub Res Qua Frg Used RIF Installer . | . . . . . . . . . . . . . . . . . . . . . . . . . . . . . . . Robots Hacked 34 | . . . . . . . . . . . . . . . 2 . 6 . 1 . 5 . 3 2 1 2 3 5 4 . Non-combat 3 | . . . . . . . . . . . . . . . . . . . . . . . 1 . . 2 . . . . Combat 4 | . . . . . . . . . . . . . . . . . . . . . . . . 1 . . . 2 1 . Robot Hacks Applied 9 | . . . . . . . . . . . . . . . . . . . . . . . 1 1 . 4 . 2 1 . parse_system 4 | . . . . . . . . . . . . . . . . . . . . . . . 1 1 . . . 2 . . check_alert 4 | . . . . . . . . . . . . . . . . . . . . . . . . . . 4 . . . . find_scanalyzer 1 | . . . . . . . . . . . . . . . . . . . . . . . . . . . . . 1 . Manual 27 | . . . . . . . . . . . . . . . 2 . 6 . 1 . 5 . 2 1 1 . 3 3 3 . Relay Couplers Released 3 | . . . . . . . . . . . . . . . . . . . . 3 . . . . . . . . . . Machine Destruction 3 | . . . . . . . . . . . . . . . . . . . . 3 . . . . . . . . . . Fabnet Peak Effective % . | . . . . . . . . . . . . . . . . . . . . . . . . . . . . . . . Robots Rewired 6 | . . . . . . . . . . . . . . . . . . . . . . . . 6 . . . . . . Allies Hacked 2 | . . . . . . . . . . . . . . . . . . . . . . . . . . . . 2 . . Hacks Repelled . | . . . . . . . . . . . . . . . . . . . . . . . . . . . . . . . Allies | -11 -10 -10 -9 -9 -9 -8 -8 -8 -8 -8 -6 -6 -6 -6 -6 -6 -5 -5 -5 -5 -4 -4 -4 -4 -4 -4 -4 -3 -3 -3 -------- Run | Yrd Mat Min Mat Min Exi Min Mat Sto Rec Scr Fac Was Fac Gar Fac Gar Fac Was Fac Gar Fac Was Fac Ext Cet Arc Hub Res Qua Frg Total Allies 81 | . . . . . . . 2 10 . . 2 18 1 . 2 . . 1 . . 3 20 . 7 5 . 1 5 . 4 Largest Group 20 | . . . . . . . 2 10 . . 1 18 13 . 1 . . 1 . . 2 20 14 17 17 16 13 5 . 2 Highest-Rated Group 1068 | . . . . . . . 20 173 . . 26 656 531 . 26 . . 31 . . 112 728 559 808 1068 1037 798 320 . 278 Highest-Rated Ally 159 | . . . . . . . 10 29 . . 26 50 50 . 26 . . 31 . . 56 50 50 159 159 147 96 64 . 139 Total Orders 6 | . . . . . . . . . . . . . . . . . . . . . . . . . 4 . . . . 2 STAY 1 | . . . . . . . . . . . . . . . . . . . . . . . . . . . . . . 1 ROAM 1 | . . . . . . . . . . . . . . . . . . . . . . . . . 1 . . . . . FOLLOW 4 | . . . . . . . . . . . . . . . . . . . . . . . . . 3 . . . . 1 Ally Attacks 787 | . . . . . . . . 73 . . . 56 99 . . . . . . . 10 90 13 106 102 41 85 42 . 70 Total Damage 28707 | . . . . . . . . 955 . . . 3280 4144 . . . . . . . 492 2527 330 4319 2651 1002 3388 1245 . 4374 Kills 145 | . . . . . . . . 10 . . . 9 28 . . . . . . . 6 6 2 26 8 4 19 8 . 19 Allies Corrupted . | . . . . . . . . . . . . . . . . . . . . . . . . . . . . . . . Allies Melted 3 | . . . . . . . . . . . . . 1 . . . . . . . . . . . . . . . . 2 Intel | -11 -10 -10 -9 -9 -9 -8 -8 -8 -8 -8 -6 -6 -6 -6 -6 -6 -5 -5 -5 -5 -4 -4 -4 -4 -4 -4 -4 -3 -3 -3 ------- Run | Yrd Mat Min Mat Min Exi Min Mat Sto Rec Scr Fac Was Fac Gar Fac Gar Fac Was Fac Gar Fac Was Fac Ext Cet Arc Hub Res Qua Frg Active Infowar (turns) 14343 | 5 928 19 365 26 47 116 328 188 316 322 986 130 759 92 753 108 1462 53 739 125 1630 227 330 760 342 723 357 1064 460 583 Optics 4350 | . . . . . . . . 9 . . . . . . . . . . . . 621 227 330 760 342 723 357 720 . 261 Sensors 10404 | . . . . . . . . . . . 679 130 759 92 738 87 1373 53 603 . 1459 227 330 760 342 723 303 1059 455 232 A.S.S. 77 | . . . . . . . . . . . . . . . . . . . . . . . . . . . . . . 77 Structural 9855 | . . . 363 26 47 116 328 179 316 322 850 78 689 . 588 22 1141 53 739 3 1328 5 330 452 . . 301 1056 445 78 Seismic 2117 | 5 928 19 365 26 47 116 315 . . . 296 . . . . . . . . . . . . . . . . . . . Cloaking 38 | . . . . . . . . . . . . . . . . . . . . . 38 . . . . . . . . . ECM 2160 | . . . . . . . . . . . . . . . 162 19 791 19 378 125 446 . . . . . . 200 . 20 Robot Analysis Total 11 | . 2 . 2 . . . 1 . . . 1 . . . . . . . 1 . 1 . . . . . . . 1 2 Derelict Logs Recovered 1 | . . 1 . . . . . . . . . . . . . . . . . . . . . . . . . . . . Drone Launches . | . . . . . . . . . . . . . . . . . . . . . . . . . . . . . . . Drone Recoveries . | . . . . . . . . . . . . . . . . . . . . . . . . . . . . . . . Exploration | -11 -10 -10 -9 -9 -9 -8 -8 -8 -8 -8 -6 -6 -6 -6 -6 -6 -5 -5 -5 -5 -4 -4 -4 -4 -4 -4 -4 -3 -3 -3 ------------- Run | Yrd Mat Min Mat Min Exi Min Mat Sto Rec Scr Fac Was Fac Gar Fac Gar Fac Was Fac Gar Fac Was Fac Ext Cet Arc Hub Res Qua Frg Turns Passed 15534 | 49 928 19 365 26 47 116 328 363 477 322 986 130 759 140 753 108 1462 53 739 125 1694 227 330 760 342 723 357 1064 460 1282 Spaces Moved 27286 | 38 981 52 674 76 139 286 685 697 505 1156 2122 281 1755 375 1725 183 2257 71 1540 232 2944 201 639 784 260 316 825 1823 991 2673 Core 177 | 38 67 . . . . . . . . . . . . . . . . . . . . . . . . 72 . . . . Treads . | . . . . . . . . . . . . . . . . . . . . . . . . . . . . . . . Legs . | . . . . . . . . . . . . . . . . . . . . . . . . . . . . . . . Wheels . | . . . . . . . . . . . . . . . . . . . . . . . . . . . . . . . Hover 1 | . . . . . . . . . . . . . . . . . . . . . . . . . . . . . . 1 Flight 27108 | . 914 52 674 76 139 286 685 697 505 1156 2122 281 1755 375 1725 183 2257 71 1540 232 2944 201 639 784 260 244 825 1823 991 2672 Fastest Speed 14 | 50 37 37 32 32 34 34 29 28 28 27 20 23 22 22 23 25 18 28 25 35 25 26 31 32 32 29 29 19 15 14 Average Speed 29 | 50 38 37 33 32 34 34 30 31 30 27 24 23 25 22 25 27 28 28 30 35 30 26 31 32 32 183 29 26 15 23 Slowest Speed 700 | 50 50 37 37 32 34 34 40 40 32 27 29 27 27 23 28 31 109 28 35 35 37 27 32 32 32 700 32 105 16 97 Overloaded Moves . | . . . . . . . . . . . . . . . . . . . . . . . . . . . . . . . Propulsion Burnouts . | . . . . . . . . . . . . . . . . . . . . . . . . . . . . . . . Robots Hopped 268 | . 9 3 6 1 . 4 23 29 3 . 35 . 7 1 17 . 12 4 17 . 33 . 2 2 . . 18 6 7 29 Potential Cave-ins 6 | . . . . . . . . . . . . . . . . . . . . . . . . . . . 4 . . 2 Cave-ins Triggered 2 | . . . . . . . . . . . . . . . . . 1 . . . . . . . . . 1 . . . Teleports 1 | . . . . . . . . . . . . . . . . . . . . . . . . . . . . . . 1 Exploration Rate (%) 63 | 3 94 27 61 29 53 80 74 77 96 87 67 90 58 57 59 34 60 78 53 31 66 81 17 87 85 99 67 50 94 55 Regions Visited 30 Branch Regions 13 Pre-discovered Areas 36 | . 5 . 5 . 1 . 1 3 6 . 4 . 1 . . . 2 . . . 3 . 3 . . . 1 . 1 . Known Exits Taken 17 | . . 1 1 . . 1 1 1 1 1 . . 1 . 1 . . . 1 . . . 1 1 1 1 1 1 1 . Unknown Exits Taken 4 | 1 1 . . 1 1 . . . . . . . . . . . . . . . . . . . . . . . . . Scrap Searched 5 | . . . . 1 . 2 . . . 2 . . . . . . . . . . . . . . . . . . . . Spaces Dug 324 | . 3 . 10 . . 2 9 10 1 . 45 . 23 7 27 5 39 . 22 7 49 . 5 19 . . 11 19 2 9 Terrain Destroyed 639 | . 3 . 10 . . 2 9 10 1 . 45 31 23 88 27 51 39 . 22 7 100 74 5 19 4 1 11 19 2 36 Melee 321 | . . . 10 . . 2 9 10 1 . 45 . 23 7 27 5 39 . 22 7 49 . 5 19 . . 11 19 2 9 Projectile 16 | . 3 . . . . . . . . . . . . . . . . . . . . . . . 4 1 . . . 8 AOE 302 | . . . . . . . . . . . . 31 . 81 . 46 . . . . 51 74 . . . . . . . 19 Terrain Rammed . | . . . . . . . . . . . . . . . . . . . . . . . . . . . . . . . Walls Destroyed . | . . . . . . . . . . . . . . . . . . . . . . . . . . . . . . . Machines Disabled . | . . . . . . . . . . . . . . . . . . . . . . . . . . . . . . . Actions | -11 -10 -10 -9 -9 -9 -8 -8 -8 -8 -8 -6 -6 -6 -6 -6 -6 -5 -5 -5 -5 -4 -4 -4 -4 -4 -4 -4 -3 -3 -3 --------- Run | Yrd Mat Min Mat Min Exi Min Mat Sto Rec Scr Fac Was Fac Gar Fac Gar Fac Was Fac Gar Fac Was Fac Ext Cet Arc Hub Res Qua Frg Total 33279 | 54 1490 48 773 75 138 297 757 784 807 1165 2437 339 1991 411 1930 227 2958 98 1752 261 3583 365 755 1231 498 435 880 2331 1279 3130 Wait 4696 | . 462 . 75 1 . 14 64 82 285 5 221 43 183 19 128 30 594 27 171 18 492 146 101 382 206 95 24 354 232 242 Move 26762 | 37 962 46 661 73 138 277 642 640 498 1155 2064 280 1740 371 1692 182 2234 64 1508 231 2880 200 635 779 259 315 790 1810 976 2623 Hop 229 | . 9 2 6 1 . 4 19 27 3 . 23 . 7 1 16 . 11 2 15 . 31 . 1 2 . . 15 6 7 21 Pick Up 95 | 2 6 . 1 . . . 3 3 2 3 9 2 5 . 7 . 5 1 7 . 10 1 . . . . 3 9 7 9 Fast Attach 179 | 4 6 . 2 . . . 5 8 2 . 13 . 3 1 6 . 21 1 2 . 26 2 2 . 3 2 2 33 7 28 Attach 88 | . 1 . 3 . . . 3 3 . . 5 3 5 1 3 1 8 2 3 1 10 1 . . 2 . 3 9 2 19 Detach 44 | . . . . . . . 1 1 1 . 2 . 1 1 . 1 4 . 1 1 5 1 . . 2 . 1 9 1 11 Swap 157 | . 7 . 4 . . . . . 2 1 11 5 9 5 16 5 12 1 4 1 25 5 . 7 4 2 5 10 1 15 Drop 169 | . 12 . 2 . . . 4 3 3 1 17 3 5 3 13 1 4 . 8 . 23 2 3 1 2 2 1 33 13 10 Fire 264 | 11 25 . . . . . 2 . . . . 3 . 1 5 1 11 . 1 . 16 7 7 23 11 7 9 6 7 111 Melee 530 | . . . 19 . . 2 14 17 11 . 63 . 33 8 44 6 54 . 32 9 65 . 6 31 1 12 16 50 8 29 Ram . | . . . . . . . . . . . . . . . . . . . . . . . . . . . . . . . Kick . | . . . . . . . . . . . . . . . . . . . . . . . . . . . . . . . Crush . | . . . . . . . . . . . . . . . . . . . . . . . . . . . . . . . Escape Stasis 46 | . . . . . . . . . . . 9 . . . . . . . . . . . . 6 . . 1 . 18 12 Rewire 2 | . . . . . . . . . . . . . . . . . . . . . . . . . . . . 2 . . Trap . | . . . . . . . . . . . . . . . . . . . . . . . . . . . . . . . Miscellaneous 18 | . . . . . . . . . . . . . . . . . . . . . . . . . 8 . 10 . . . Route ------- -11/Scrapyard -10/Materials (discovered 5 exits: *Mat x3 / [*Min] / Sub) -10/Mines -9/Materials (discovered 5 exits: *Mat x3 / *Min x2) -9/Mines (discovered 3 exits: *Mat x2 / *Exi) -9/Exiles -8/Mines (discovered 2 exits: *Mat x2) -8/Materials (discovered 3 exits: [*Fac x2] / *Sto) -8/Storage (discovered 2 exits: [*Fac] / *Rec) -8/Recycling (discovered 2 exits: *Fac / *Scr) -8/Scraptown (discovered 2 exits: *Fac x2) -6/Factory (discovered 4 exits: *Fac x2 / *Low x2) -6/Waste -6/Factory (discovered 7 exits: *Fac x4 / *Low x2 / Gar) -6/Garrison (discovered 3 exits: *Fac x3) -6/Factory (discovered 5 exits: *Fac x2 / *Low x2 / Gar) -6/Garrison (discovered 3 exits: *Fac x3) -5/Factory (discovered 6 exits: *Fac x4 / *Upp x2) -5/Waste -5/Factory (discovered 4 exits: *Fac x2 / *Upp / Gar) -5/Garrison -4/Factory (discovered 8 exits: *Res x3 / *Upp x2 / *Ext x2 / *Arm) -4/Waste -4/Factory (discovered 4 exits: Res / Upp / *Ext / Arm) -4/Extension (discovered 3 exits: *Res x2 / *Cet) -4/Cetus (discovered 2 exits: *Res / *Arc) -4/Archives (discovered 3 exits: *Res / *Hub x2) -4/Hub_04(d) (discovered 3 exits: *Res x3) -3/Research (discovered 4 exits: *Res x2 / *Qua x2) -3/Quarantine (discovered 3 exits: *Res / *Sec / *Frg) -3/Protoforge History --------- Turn | Location | Event 9 | -11/Scrapyard | Discovered new exit (range 14) 50 | -11/Scrapyard | Entered Materials 103 | -10/Materials | Discovered new exit (range 13) 203 | -10/Materials | Discovered new exit (range 6) 418 | -10/Materials | Discovered new exit (range 12) 493 | -10/Materials | Build established: Scavenger-Mutant 546 | -10/Materials | Learned Storage emergency access door positions 680 | -10/Materials | Learned Storage trap positions 770 | -10/Materials | Identified exit to Materials 770 | -10/Materials | Identified exit to Subcaves 770 | -10/Materials | Learned location of 1 exit from Materials 802 | -10/Materials | Learned 2 Storage zone layouts 843 | -10/Materials | Learned 4 Recycling zone layouts 892 | -10/Materials | Learned location of Storage (-8) 978 | -10/Materials | Entered Mines 997 | -10/Mines | Entered Materials 997 | -9/Materials | Evolved 2 slots: Propulsion x1, Utility x1 998 | -9/Materials | Identified exit to Mines 999 | -9/Materials | Identified exit to Materials 1099 | -9/Materials | Repaired Flight Unit 1115 | -9/Materials | Discovered exit to Materials (range 12) 1145 | -9/Materials | Discovered exit to Materials (range 20) 1211 | -9/Materials | Learned location of 1 exit from Recycling 1266 | -9/Materials | Learned Storage emergency access door positions 1279 | -9/Materials | Learned location of Zion (-6) 1285 | -9/Materials | Loaded intel: 2 repair station locations 1362 | -9/Materials | Entered Mines 1386 | -9/Mines | Deemed a non-threat by the Exiles lab entrance 1386 | -9/Mines | Discovered new exit (range 5) 1388 | -9/Mines | Entered Exiles 1397 | -9/Exiles | Met 8R-AWN 1403 | -9/Exiles | Met EX-HEX 1412 | -9/Exiles | Met EX-BIN 1421 | -9/Exiles | Met EX-DEC 1433 | -9/Exiles | Discovered new exit (range 10) 1435 | -9/Exiles | Entered Mines 1464 | -8/Mines | Discovered exit to Materials (range 10) 1548 | -8/Mines | Discovered exit to Materials (range 10) 1551 | -8/Mines | Entered Materials 1551 | -8/Materials | Evolved 2 slots: Propulsion x1, Utility x1 1588 | -8/Materials | Central database locked down 1598 | -8/Materials | Discovered new exit (range 8) 1795 | -8/Materials | Identified exit to Storage 1847 | -8/Materials | Discovered new exit (range 3) 1879 | -8/Materials | Entered Storage 1880 | -8/Storage | Identified exit to Recycling 1881 | -8/Storage | Loaded intel: 8 trap records 1895 | -8/Storage | Assisted by bots powering up and referring to "LRC-V3" 1907 | -8/Storage | Garrison activated, responded to threat 1918 | -8/Storage | Lost 4 parts (2n1u1w) 1958 | -8/Storage | Discovered new exit (range 6) 2061 | -8/Storage | Core integrity fell below 50% 2085 | -8/Storage | Used back door to open Recycling access 2086 | -8/Storage | Learned 2 Lower Caves zone layouts 2125 | -8/Storage | Learned location of Extension (-4) 2179 | -8/Storage | Learned location of 1 exit from Recycling 2180 | -8/Storage | Learned Factory stockpile data 2182 | -8/Storage | Learned Recycling recycling unit intel 2242 | -8/Storage | Entered Recycling 2243 | -8/Recycling | Identified exit to Factory 2243 | -8/Recycling | Identified exit to Scraptown 2245 | -8/Recycling | Loaded intel: 3 recycling unit locations 2424 | -8/Recycling | Build established: Hacker-Sprinter 2427 | -8/Recycling | Scanned before Scraplab entrance 2431 | -8/Recycling | Entered Scraplab 2474 | -8/Recycling | Learned 4 Recycling zone layouts 2524 | -8/Recycling | Learned Storage trap positions 2692 | -8/Recycling | Learned location of 1 exit from Lower Caves 2719 | -8/Recycling | Entered Scraptown 2800 | -8/Scraptown | Discovered exit to Factory (range 11) 2813 | -8/Scraptown | Visited Cave Peace 2824 | -8/Scraptown | Visited Cyclists 2829 | -8/Scraptown | Visited UFD Registry 2829 | -8/Scraptown | Registered with UFD as "Metalroller" 2835 | -8/Scraptown | Entered Cyclist Reading Room 2845 | -8/Scraptown | Visited Awakened 2857 | -8/Scraptown | Visited TADAMA 2864 | -8/Scraptown | Visited Symbiants 2870 | -8/Scraptown | Visited IN-MT5's Study 2889 | -8/Scraptown | Visited Abandonware Association 2894 | -8/Scraptown | Learned abandonware demo "SHUTEYE.EXE" 2899 | -8/Scraptown | Visited Science Guys 2910 | -8/Scraptown | Visited Scrap Suit Storage 2922 | -8/Scraptown | Visited Observation Area 2961 | -8/Scraptown | Visited Infowarlord's Domain 2963 | -8/Scraptown | Found Exp. Signal Interpreter 2969 | -8/Scraptown | Visited Derelict Rescue Squad 2975 | -8/Scraptown | Visited Curators Association 2985 | -8/Scraptown | Visited Chapter 10 2995 | -8/Scraptown | Visited Junk Repository 3025 | -8/Scraptown | Met Optimus 3025 | -8/Scraptown | Accepted into 0bPrime 3041 | -8/Scraptown | Discovered exit to Factory (range 3) 3041 | -8/Scraptown | Entered Factory 3041 | -6/Factory | Evolved 4 slots: Propulsion x2, Utility x2 3042 | -6/Factory | Identified exit to Lower Caves 3071 | -6/Factory | Discovered new exit (range 8) 3201 | -6/Factory | Discovered exit to Lower Caves (range 10) 3325 | -6/Factory | Loaded intel: 8 recycling unit locations 3332 | -6/Factory | Learned location of Protoforge (-3) 3445 | -6/Factory | Repaired Power Sword 3628 | -6/Factory | Learned Extension garrison access intel 3685 | -6/Factory | Learned 4 Extension zone layouts 3687 | -6/Factory | Repaired Cesium-ion Thruster 3708 | -6/Factory | Build established: Hacker-Scout 3731 | -6/Factory | Learned Hub_04(d) emergency access door positions 3767 | -6/Factory | Learned location of 2 exits from Proximity Caves 3908 | -6/Factory | Discovered new exit (range 15) 4027 | -6/Factory | Sucked down chute 4027 | -6/Factory | Entered Waste 4028 | -6/Waste | Identified exit to Factory 4031 | -6/Waste | Spotted C-40 Crusher 4035 | -6/Waste | Spotted C-40 Crusher 4039 | -6/Waste | Spotted C-40 Crusher 4041 | -6/Waste | Spotted C-40 Crusher 4047 | -6/Waste | Spotted C-40 Crusher 4047 | -6/Waste | Spotted C-40 Crusher 4051 | -6/Waste | Warlord forces began an assault 4066 | -6/Waste | Allies destroyed C-40 Crusher 4066 | -6/Waste | Destroyed C-40 Crusher 4071 | -6/Waste | Destroyed C-40 Crusher 4074 | -6/Waste | Allies destroyed C-40 Crusher 4097 | -6/Waste | Lost 5 allies 4157 | -6/Waste | Entered Factory 4157 | -6/Factory | Accompanied by 13 allies 4158 | -6/Factory | Identified exit to Factory 4255 | -6/Factory | Loaded intel: 8 recycling unit locations 4276 | -6/Factory | Discovered exit to Factory (range 4) 4395 | -6/Factory | Discovered exit to Lower Caves (range 4) 4440 | -6/Factory | Fabricated Cesium-ion Thruster (x2) 4492 | -6/Factory | Fabricated Exp. Signal Interpreter (x1) 4507 | -6/Factory | First assault squad dispatched 4692 | -6/Factory | Identified exit to Garrison 4700 | -6/Factory | Learned 2 Proximity Caves zone layouts 4770 | -6/Factory | Loaded intel: 249 non-interactive machine locations 4791 | -6/Factory | Learned 4 Hub_04(d) zone layouts 4801 | -6/Factory | Learned 4 Extension zone layouts 4802 | -6/Factory | Repaired Greatsword 4829 | -6/Factory | Repaired Nuclear Pulse Thruster 4851 | -6/Factory | Build established: Scout 4916 | -6/Factory | Entered Garrison 4930 | -6/Garrison | Triggered checkpoint 4957 | -6/Garrison | Phase Generator disabled 4983 | -6/Garrison | Discovered new exit (range 10) 4985 | -6/Garrison | Identified exit to Factory 4985 | -6/Garrison | Attempted to access garrison exit controls, blocked by remote lockdown 5007 | -6/Garrison | Discovered exit to Factory (range 33) 5007 | -6/Garrison | Discovered exit to Factory (range 33) 5007 | -6/Garrison | Discovered exit to Factory (range 59) 5026 | -6/Garrison | Triggered checkpoint 5036 | -6/Garrison | Triggered checkpoint 5054 | -6/Garrison | Triggered checkpoint 5056 | -6/Garrison | Entered Factory 5077 | -6/Factory | Discovered exit to Factory (range 8) 5138 | -6/Factory | Loaded intel: 8 recycling unit locations 5194 | -6/Factory | Hacking Suite fried by hacking feedback 5294 | -6/Factory | Discovered exit to Lower Caves (range 6) 5406 | -6/Factory | Search patrols dispatched 5491 | -6/Factory | Learned Hub_04(d) emergency access door positions 5593 | -6/Factory | Learned 2 Lower Caves zone layouts 5631 | -6/Factory | Learned Factory recycling unit intel 5675 | -6/Factory | Learned location of 1 exit from Extension 5704 | -6/Factory | Learned 4 Factory zone layouts 5770 | -6/Factory | Discovered exit to Factory (range 6) 5809 | -6/Factory | Identified exit to Garrison 5809 | -6/Factory | Entered Garrison 5842 | -6/Garrison | Phase Generator disabled 5902 | -6/Garrison | Spotted B-75 Beast 5905 | -6/Garrison | Triggered checkpoint 5917 | -6/Garrison | Entered Factory 5917 | -5/Factory | Evolved 2 slots: Propulsion x1, Utility x1 5919 | -5/Factory | Loaded intel: 8 recycling unit locations 6016 | -5/Factory | Spotted B-75 Beast 6020 | -5/Factory | Loaded intel: 8 recycling unit locations 6162 | -5/Factory | Discovered new exit (range 14) 6189 | -5/Factory | Discovered new exit (range 3) 6190 | -5/Factory | Identified exit to Factory 6232 | -5/Factory | Fabricated Q-thruster (x2) 6303 | -5/Factory | Crushed by falling debris 6303 | -5/Factory | System corruption reached 10% 6334 | -5/Factory | Lost 5 parts (3n2u) 6481 | -5/Factory | Hacking Suite fried by hacking feedback 6535 | -5/Factory | Repaired Q-thruster 6574 | -5/Factory | Repaired Imp. Propulsion Shielding 6690 | -5/Factory | Build established: Scavenger-Ninja 6704 | -5/Factory | Discovered exit to Factory (range 15) 6727 | -5/Factory | Discovered exit to Factory (range 15) 6753 | -5/Factory | Discovered new exit (range 10) 6755 | -5/Factory | Identified exit to Upper Caves 6968 | -5/Factory | Repaired VTOL Module 7141 | -5/Factory | Build established: Sprinter 7184 | -5/Factory | Adv. Hacking Suite fried by hacking feedback 7190 | -5/Factory | Central database locked down 7254 | -5/Factory | Fabricated Imp. System Restoration Module? 7259 | -5/Factory | Learned Research fabricator intel 7273 | -5/Factory | Learned location of Warlord (-5) 7296 | -5/Factory | Learned Extension emergency access door positions 7379 | -5/Factory | Manually triggered Chute Trap 7379 | -5/Factory | Sucked down chute 7379 | -5/Factory | Entered Waste 7380 | -5/Waste | Met a frightened Derelict 7380 | -5/Waste | Identified exit to Factory 7387 | -5/Waste | Spotted C-40 Crusher 7390 | -5/Waste | Spotted C-40 Crusher 7391 | -5/Waste | Spotted C-40 Crusher 7391 | -5/Waste | Spotted C-40 Crusher 7394 | -5/Waste | EMP discharged 7394 | -5/Waste | Crushed by Compactor (0 parts destroyed, 2 dropped) 7397 | -5/Waste | Spotted C-40 Crusher 7432 | -5/Waste | Entered Factory 7524 | -5/Factory | Loaded intel: 8 recycling unit locations 7951 | -5/Factory | Discovered exit to Upper Caves (range 10) 8020 | -5/Factory | Spotted B-75 Beast 8066 | -5/Factory | Lost 3 parts (2n1u) 8171 | -5/Factory | Identified exit to Garrison 8171 | -5/Factory | Entered Garrison 8188 | -5/Garrison | Garrison Relay disabled 8193 | -5/Garrison | Triggered checkpoint 8254 | -5/Garrison | Discovered exit to Factory (range 10) 8296 | -5/Garrison | Entered Factory 8296 | -4/Factory | Evolved 2 slots: Propulsion x1, Utility x1 8297 | -4/Factory | Identified exit to Extension 8297 | -4/Factory | Identified exit to Armory 8336 | -4/Factory | Repaired Nuclear Pulse Array 8417 | -4/Factory | Build established: Hacker-Mutant 8623 | -4/Factory | Discovered new exit (range 15) 8627 | -4/Factory | Identified exit to Upper Caves 8706 | -4/Factory | Discovered new exit (range 12) 8711 | -4/Factory | Identified exit to Research 8726 | -4/Factory | Build established: Hacker-Ninja 8755 | -4/Factory | Discovered exit to Upper Caves (range 15) 8792 | -4/Factory | Learned location of 1 exit from Proximity Caves 8811 | -4/Factory | Learned location of 1 exit from Proximity Caves 8812 | -4/Factory | Learned location of 2 exits from Proximity Caves 8814 | -4/Factory | Learned location of 1 exit from Research 8828 | -4/Factory | Learned Quarantine terminal intel 8834 | -4/Factory | Loaded intel: 8 recycling unit locations 8863 | -4/Factory | Discovered exit to Research (range 4) 8895 | -4/Factory | Spotted B-86 Titan 8938 | -4/Factory | Lost 3 parts (1p2u) 9088 | -4/Factory | Fabricated H-77 Assassin (x2) 9122 | -4/Factory | Fabricated Lgt. Particle Reactor (x2) 9158 | -4/Factory | Fabricated Q-thruster (x2) 9199 | -4/Factory | Fabricated Exp. Propulsion Shielding (x1) 9504 | -4/Factory | Found Prototype Device 9504 | -4/Factory | Identified Exp. ECM Suite 9797 | -4/Factory | Learned Research recycling unit intel 9826 | -4/Factory | Learned Armory stockpile data 9827 | -4/Factory | Learned Quarantine trap positions 9834 | -4/Factory | Learned location of 2 exits from Proximity Caves 9836 | -4/Factory | Build established: Hacker-Scout 9990 | -4/Factory | Manually triggered Chute Trap 9990 | -4/Factory | Sucked down chute 9990 | -4/Factory | Entered Waste 9990 | -4/Waste | Met up with 1 ally sucked down the chute earlier 9996 | -4/Waste | Warlord forces began an assault 10056 | -4/Waste | Spotted C-40 Crusher 10063 | -4/Waste | Allies destroyed C-40 Crusher 10066 | -4/Waste | Spotted C-40 Crusher 10066 | -4/Waste | Spotted C-40 Crusher 10067 | -4/Waste | Spotted C-40 Crusher 10069 | -4/Waste | Allies destroyed C-40 Crusher 10072 | -4/Waste | Destroyed C-40 Crusher 10075 | -4/Waste | Spotted C-40 Crusher 10081 | -4/Waste | Destroyed C-40 Crusher 10084 | -4/Waste | Allies destroyed C-40 Crusher 10141 | -4/Waste | Spotted C-40 Crusher 10149 | -4/Waste | Allies destroyed C-40 Crusher 10158 | -4/Waste | Discovered new exit (range 12) 10178 | -4/Waste | Lost 4 allies 10213 | -4/Waste | Identified exit to Factory 10217 | -4/Waste | Entered Factory 10217 | -4/Factory | Accompanied by 14 allies 10304 | -4/Factory | Loaded intel: 8 recycling unit locations 10472 | -4/Factory | Learned Testing stockpile data 10504 | -4/Factory | Learned 4 Research zone layouts 10512 | -4/Factory | Learned location of 2 exits from Upper Caves 10547 | -4/Factory | Entered Extension 10547 | -4/Extension | Accompanied by 14 allies 10548 | -4/Extension | Identified exit to Cetus 10732 | -4/Extension | Rescued A7 10779 | -4/Extension | Learned 2 Proximity Caves zone layouts 10878 | -4/Extension | Learned location of 1 exit from Upper Caves 10891 | -4/Extension | Learned Research repair station intel 10912 | -4/Extension | Learned Factory stockpile data 10999 | -4/Extension | Spotted B-86 Titan 11010 | -4/Extension | Allies destroyed B-86 Titan 11012 | -4/Extension | Spotted B-86 Titan 11029 | -4/Extension | Allies destroyed B-86 Titan 11061 | -4/Extension | Loaded intel: 1 recycling unit location 11080 | -4/Extension | Lost 3 allies 11307 | -4/Extension | Entered Cetus 11307 | -4/Cetus | Accompanied by 17 allies (A7) 11311 | -4/Cetus | Spotted Cetus Guard 11312 | -4/Cetus | Acquired a Cetus Manufacturing Module code from A7 11312 | -4/Cetus | Spotted Cetus Guard 11319 | -4/Cetus | Spotted Cetus Guard 11319 | -4/Cetus | Spotted Cetus Guard 11341 | -4/Cetus | Allies destroyed Cetus Guard 11343 | -4/Cetus | Allies destroyed Cetus Guard 11349 | -4/Cetus | Destroyed Cetus Guard 11352 | -4/Cetus | Allies destroyed Cetus Guard 11374 | -4/Cetus | Lost 5 allies 11390 | -4/Cetus | Started Cetus Manufacturing Module 11415 | -4/Cetus | Manufactured an Enhanced Grunt 11417 | -4/Cetus | Escorted A7 to Cetus Mainframe 11440 | -4/Cetus | Manufactured an Enhanced Grunt 11465 | -4/Cetus | Manufactured an Enhanced Grunt 11490 | -4/Cetus | Manufactured an Enhanced Grunt 11515 | -4/Cetus | Manufactured an Enhanced Grunt 11531 | -4/Cetus | Discovered new exit (range 19) 11539 | -4/Cetus | Spotted Cetus Guard 11540 | -4/Cetus | Spotted Cetus Guard 11555 | -4/Cetus | Spotted Cetus Guard 11555 | -4/Cetus | Spotted Cetus Guard 11563 | -4/Cetus | Allies destroyed Cetus Guard 11585 | -4/Cetus | Allies destroyed Cetus Guard 11588 | -4/Cetus | Allies destroyed Cetus Guard 11595 | -4/Cetus | Allies destroyed Cetus Guard 11598 | -4/Cetus | Discovered exit to Research (range 19) 11605 | -4/Cetus | Met Revision 17 11615 | -4/Cetus | Identified exit to Archives 11649 | -4/Cetus | Entered Archives 11649 | -4/Archives | Accompanied by 16 allies (A7) 11656 | -4/Archives | Received a hacking code to weaken MAIN.C 11697 | -4/Archives | Discovered exit to Research (range 14) 11713 | -4/Archives | Discovered new exit (range 19) 11715 | -4/Archives | Discovered new exit (range 14) 11724 | -4/Archives | Identified exit to Hub_04(d) 11810 | -4/Archives | Build established: Commander-Scout 12127 | -4/Archives | Build established: Commander-Assassin 12372 | -4/Archives | Entered Hub_04(d) 12372 | -4/Hub_04(d) | Accompanied by 13 allies 12383 | -4/Hub_04(d) | Discovered exit to Research (range 18) 12413 | -4/Hub_04(d) | Discovered exit to Research (range 18) 12454 | -4/Hub_04(d) | Spotted B-86 Titan 12487 | -4/Hub_04(d) | Discovered exit to Research (range 14) 12505 | -4/Hub_04(d) | Learned 4 Proximity Caves zone layouts 12507 | -4/Hub_04(d) | Garrison activated, responded to threat 12555 | -4/Hub_04(d) | Lost 6 allies 12561 | -4/Hub_04(d) | Learned Research interactive machine intel 12588 | -4/Hub_04(d) | Network Hub disabled 12601 | -4/Hub_04(d) | Crushed by falling debris 12609 | -4/Hub_04(d) | Learned location of 2 exits from Upper Caves 12615 | -4/Hub_04(d) | Spotted Lightning 12615 | -4/Hub_04(d) | Spotted Lightning 12615 | -4/Hub_04(d) | Spotted Lightning 12615 | -4/Hub_04(d) | Spotted Lightning 12615 | -4/Hub_04(d) | Spotted Lightning 12615 | -4/Hub_04(d) | Spotted Lightning 12647 | -4/Hub_04(d) | Learned Research trap positions 12649 | -4/Hub_04(d) | Network Hub disabled 12650 | -4/Hub_04(d) | Lost 5 allies 12663 | -4/Hub_04(d) | Spotted Lightning 12663 | -4/Hub_04(d) | Spotted Lightning 12674 | -4/Hub_04(d) | Learned Factory security intel 12689 | -4/Hub_04(d) | Learned 2 Upper Caves zone layouts 12694 | -4/Hub_04(d) | Network Hub disabled 12700 | -4/Hub_04(d) | Network Hub disabled 12709 | -4/Hub_04(d) | Learned 4 Testing zone layouts 12723 | -4/Hub_04(d) | System corruption reached 10% 12729 | -4/Hub_04(d) | Entered Research 12729 | -3/Research | Evolved 2 slots: Power x1, Propulsion x1 12730 | -3/Research | Identified exit to Quarantine 12731 | -3/Research | Identified exit to Research 12733 | -3/Research | Loaded intel: 55 trap records 12734 | -3/Research | Loaded intel: 48 interactive machine locations 12735 | -3/Research | Loaded intel: 4 fabricator locations 12736 | -3/Research | Loaded intel: 4 repair station locations 12737 | -3/Research | Loaded intel: 5 recycling unit locations 12790 | -3/Research | Fabricated Exp. Propulsion Shielding (x1) 12929 | -3/Research | Revision forces began assault on 0b10 12949 | -3/Research | Found Prototype Processor 12949 | -3/Research | Identified Exp. Targeting Computer 12953 | -3/Research | Found Exp. Targeting Computer 12972 | -3/Research | Scrapoid reinforcements arrived 13063 | -3/Research | Repaired Broken Impulse Thruster Array 13074 | -3/Research | Discovered exit to Research (range 4) 13095 | -3/Research | Met up with Revision 17++ 13314 | -3/Research | Lost 4 allies 13402 | -3/Research | Build established: Hacker-Scout 13429 | -3/Research | Research terminal network offline 13432 | -3/Research | Found Prototype Device 13432 | -3/Research | Identified Adv. EM Shield 13437 | -3/Research | Found Prototype Launcher 13437 | -3/Research | Identified Hellfire Missile Launcher 13555 | -3/Research | Discovered exit to Quarantine (range 16) 13618 | -3/Research | Found Fusion Bomb Launcher 13671 | -3/Research | Spotted Executioner 13793 | -3/Research | Entered Quarantine 13794 | -3/Quarantine | Loaded intel: 19 trap records 13795 | -3/Quarantine | Loaded intel: 17 terminal locations 13854 | -3/Quarantine | Found Alien Artifact 13854 | -3/Quarantine | Identified Core Reset Matrix 13854 | -3/Quarantine | Used Core Reset Matrix 13858 | -3/Quarantine | Detected hypermatrix surge 13858 | -3/Quarantine | Sensed 11 artifacts in vicinity 13873 | -3/Quarantine | Found Subatomic Replicator 13878 | -3/Quarantine | Used Subatomic Replicator to create Supercharged TR 13883 | -3/Quarantine | Found Dimensional Node Initializer 13887 | -3/Quarantine | Found Transdimensional Reconstructor 13888 | -3/Quarantine | Found Transdimensional Reconstructor 13970 | -3/Quarantine | Learned Section 7 stockpile data 13976 | -3/Quarantine | Found Matter Drive 13984 | -3/Quarantine | Discovered exit to Research (range 10) 13989 | -3/Quarantine | Spotted Alpha 7 13993 | -3/Quarantine | Found Sigix Terminator 14047 | -3/Quarantine | Learned Access recycling unit intel 14069 | -3/Quarantine | Spotted Fortress 14080 | -3/Quarantine | Discovered new exit (range 5) 14080 | -3/Quarantine | Discovered new exit (range 6) 14080 | -3/Quarantine | Identified exit to Section 7 14081 | -3/Quarantine | Identified exit to Protoforge 14092 | -3/Quarantine | Loaded intel: 3 scanalyzer locations 14111 | -3/Quarantine | Learned 4 Testing zone layouts 14138 | -3/Quarantine | Learned Research scanalyzer intel 14177 | -3/Quarantine | Learned Testing security intel 14253 | -3/Quarantine | Entered Protoforge 14254 | -3/Protoforge | Sensed 2 artifacts in vicinity 14258 | -3/Protoforge | Superfortress began startup sequence 14307 | -3/Protoforge | Spotted Hotshot 14307 | -3/Protoforge | Spotted Hotshot 14327 | -3/Protoforge | Spotted B-86 Titan 14331 | -3/Protoforge | Spotted Hotshot 14331 | -3/Protoforge | Spotted Hotshot 14359 | -3/Protoforge | Spotted AP7-3 14359 | -3/Protoforge | Spotted AP7-3 14365 | -3/Protoforge | Spotted Overlord 14369 | -3/Protoforge | Spotted SKR-2 14369 | -3/Protoforge | Spotted SKR-2 14370 | -3/Protoforge | Spotted SKR-2 14374 | -3/Protoforge | UFD initiated attack on Protoforge 14374 | -3/Protoforge | Loaded intel: 3 recycling unit locations 14388 | -3/Protoforge | Scraphulk reinforcements arrived? 14401 | -3/Protoforge | Allies destroyed SKR-2 14402 | -3/Protoforge | Lost 3 parts (1p1u1w) 14405 | -3/Protoforge | Scraphulk reinforcements arrived 14410 | -3/Protoforge | Optimus greeted in Protoforge 14410 | -3/Protoforge | Spotted EXE-6 14429 | -3/Protoforge | Initialized slip node 14450 | -3/Protoforge | Warped through subspace to slip node 14451 | -3/Protoforge | Optimus attacked Superfortress 14451 | -3/Protoforge | Lost 5 allies 14452 | -3/Protoforge | Spotted Immortal 14455 | -3/Protoforge | Spotted Executioner 14459 | -3/Protoforge | Found Prototype Ballistic Gun 14459 | -3/Protoforge | Identified Cep. XC Strikerail 14475 | -3/Protoforge | Spotted Decapitator 14476 | -3/Protoforge | Forge Plexus network access discovered 14483 | -3/Protoforge | Found Exp. Core Analyzer 14507 | -3/Protoforge | Lost 22 allies 14555 | -3/Protoforge | Met 7R-MNS 14567 | -3/Protoforge | Found Cep. XC Strikerail 14596 | -3/Protoforge | Spotted Striker 14597 | -3/Protoforge | Spotted Striker 14599 | -3/Protoforge | Spotted Striker 14600 | -3/Protoforge | Destroyed Striker 14603 | -3/Protoforge | Spotted Striker 14609 | -3/Protoforge | Allies destroyed Striker 14612 | -3/Protoforge | Spotted Hotshot 14619 | -3/Protoforge | Destroyed Hotshot 14634 | -3/Protoforge | Lost 4 allies 14634 | -3/Protoforge | P-80 Master assimilated allied 03F57-D 14676 | -3/Protoforge | Lost 3 allies 14697 | -3/Protoforge | Spotted Executioner 14713 | -3/Protoforge | Spotted Executioner 14715 | -3/Protoforge | Build established: Scavenger-Sprinter 14727 | -3/Protoforge | Allies destroyed Executioner 14750 | -3/Protoforge | Spotted Executioner 14759 | -3/Protoforge | Spotted Executioner 14759 | -3/Protoforge | Spotted Striker 14764 | -3/Protoforge | Destroyed Executioner 14769 | -3/Protoforge | Destroyed Executioner 14786 | -3/Protoforge | Core integrity fell below 50% 14789 | -3/Protoforge | Spotted Executioner 14790 | -3/Protoforge | Destroyed 8 combat bots 14802 | -3/Protoforge | Allies destroyed Executioner 14816 | -3/Protoforge | Lost 9 parts (1p5n3u) 14839 | -3/Protoforge | Spotted Hotshot 14843 | -3/Protoforge | Spotted Hotshot 14844 | -3/Protoforge | Spotted Hotshot 14865 | -3/Protoforge | Destroyed Hotshot 14866 | -3/Protoforge | Allies destroyed Hotshot 14953 | -3/Protoforge | Lost 4 parts (2n2u) 14971 | -3/Protoforge | Spotted V835-f 14971 | -3/Protoforge | Spotted V290-i 14971 | -3/Protoforge | Spotted V964-d 15005 | -3/Protoforge | Spotted Striker 15007 | -3/Protoforge | Spotted Executioner 15023 | -3/Protoforge | Spotted Striker 15093 | -3/Protoforge | Spotted Executioner 15197 | -3/Protoforge | Found Exp. Core Analyzer 15199 | -3/Protoforge | Spotted Executioner 15200 | -3/Protoforge | Spotted Striker 15200 | -3/Protoforge | Spotted Striker 15213 | -3/Protoforge | Spotted Executioner 15214 | -3/Protoforge | Spotted Striker 15240 | -3/Protoforge | UFD reported confirmed Drillbomb installation 15253 | -3/Protoforge | P-80 Master assimilated allied 03F16-K 15258 | -3/Protoforge | Spotted 03F16-K 15301 | -3/Protoforge | Lost 7 allies 15314 | -3/Protoforge | Spotted Decapitator 15314 | -3/Protoforge | Spotted Decapitator 15314 | -3/Protoforge | Spotted Decapitator 15329 | -3/Protoforge | Destroyed Decapitator 15329 | -3/Protoforge | Destroyed Decapitator 15331 | -3/Protoforge | Destroyed Decapitator 15332 | -3/Protoforge | Core integrity fell below 20% 15351 | -3/Protoforge | Spotted V342-l 15370 | -3/Protoforge | Spotted V819-r 15370 | -3/Protoforge | Spotted V493-z 15373 | -3/Protoforge | Spotted V828-v 15374 | -3/Protoforge | Spotted V606-d 15378 | -3/Protoforge | Found Corrupted Exp. Active Sensor Suite 15416 | -3/Protoforge | Lost 5 parts (2p2n1u) 15453 | -3/Protoforge | Found Cep. Combat Aerolev Unit 15455 | -3/Protoforge | Found Cep. Combat Aerolev Unit 15458 | -3/Protoforge | Found Exp. Kinecellerator 15468 | -3/Protoforge | Lost 5 allies 15470 | -3/Protoforge | Found Exp. System Purifier 15511 | -3/Protoforge | Found Cep. Antigrav Storage Unit 15535 | -3/Protoforge | Destroyed by V290-i with Ragnarok Missile Launcher Last Messages --------------- 15508_ Dropped Lrn. Sensor Array. 15511_ Acquired Cep. Antigrav Storage Unit. 15513_ Machine disabled. 15515_ Cep. XC Strikerail destroyed. 15515_ Impulse Thruster Array destroyed. 15516_ Knocked back. 15516_ Dropped Imp. Quantum Reactor. 15519_ Triggered Segregator Trap. 15519_ Arcs of energy rise from the floor. 15519_ Com. Linear Accelerator blown off. 15523_ Acquired 25 matter. 15526_ Triggered Stasis Trap. 15526_ A bubble of rippling energy engulfs the area. 15526_ Field strength at 89. 15529_ Field strength at 82. 15530_ Field strength at 75. 15531_ Field strength at 68. 15532_ Field strength at 61. 15534_ Acquired 20 matter. Map ----- +----------------------------------------------------+ | " #???????????????????? ?????????????# #??? | | "! #???????????????????" ?????????????# #??? | | "!! #???????????????????" "????????????# #??? | | "! #???????????????????" "????????????# #??? | | " " *#???????????????????# #????????????# #??? | | "!!"% #???????????????????# #????????????# #??? | | "!!" #???????????????????# #????????????# #??? | | """# #???????????????????# #????????????# #??? | | #### #???????????????????# #????????????# #??? | | ???# #???????????????????# #????????????# #??? | | ???# #???????????????????# #????????????# #??? | | ???# #???????????????????# #????????????# #??? | | ???# ]#???????????????????# #????????????# #### | | ???# #???????????????????# #???????????## | | #### ##################### #???????????#" | | ##??????????## %#### | | % #???????????# #??? | | % #???????????# #??? | | ############+++########V #####???????????# #??? | | ????????# #???# #???????????????# #??? | | ????????# #???# #???????????????# ##?? | | ????????# " " #???# #???????????????# "??? | | ????????# " " #???# #???????????????# #??? | | ????????# ""G"" #???# #???????????????# #??? | | ????????# % % #???# #???????????????# #??? | | ????????###########???# @################# #??? | | ??????????????????????#! #??? | | ??????????????????????# ! #??? | | ??????????????????????# % #??? | | ??????????????????????######## % ########??? | | ?????????????????????????????# #?????????? | | ?????????????????????????????# #?????????? | | ?????????????????????????????# #?????????? | | ?????????????????????????????# #?????????? | | ?????????????????????????????## ########???? | | ?????????????????????#########" # # ###?? | | ?????????????????????########## # # #?? | | ?????????????????????##??""""" ### | | ##?########?########?##? """" % # # | | ##?########?########?## "" % | | #####????#####????##### T" % | | #####!!!!#####!!!!##### % % # | | ??????????!!???????? % | | ?????????=????????? % | | ??????????[!*?????? | | ??????????????????? % | | ??????????????????? % | | ??????????????????? % | | #####[[[[#####??!!##### "### | | #####????#####????#####"""""""""""""""""""""""#### | +----------------------------------------------------+ Best States ------------- Heat Dissipation 84 Energy Generation 47 Energy Capacity 430 Matter Stores 300 Matter Capacity 700 Sight Range 23 Robot Scan Range 20 Terrain Scan Density 10 ECM Strength 3 Cloak Strength 3 Base Temperature (-) 200 Corruption Containment 8 Armor Coverage 225 Core Shielding 30 Propulsion Shielding 90 Weapon Shielding 90 Evasion (%) 74 Melee Accuracy 5 Core Analysis 8 Energy Filtering 50 Offensive Hacking 34 Defensive Hacking 28 Authchip Count 2 Item Schematics ----------------- Shock Absorption System | -3/Protoforge | Extracted Mic. Fission Core | -3/Protoforge | Extracted Imp. VSS Leg | -3/Protoforge | Extracted Field Propulsion Array | -3/Protoforge | Extracted Imp. Point Defense System | -3/Protoforge | Extracted Imp. Arc Projector | -3/Protoforge | Extracted Melee Analysis Suite | -3/Protoforge | Extracted Biometal Leg | -3/Protoforge | Extracted Imp. Dynamic Insulation System | -3/Protoforge | Extracted Adv. Variable Charge Gun | -3/Protoforge | Extracted Multireflex Exoskeleton | -3/Protoforge | Archive Shock Maul | -3/Protoforge | Archive Nanosword | -3/Protoforge | Archive Robot Schematics ------------------ K-01 Serf | -3/Protoforge | Archive C-55 Analyst | -3/Protoforge | Archive S-43 Plague | -3/Protoforge | Archive Fabricated ------------ Cesium-ion Thruster | x2 | -6/Factory | Authchip Exp. Signal Interpreter | x1 | -6/Factory | Authchip Q-thruster | x2 | -5/Factory | Authchip Imp. System Restoration Module | x2 | -5/Factory | Authchip H-77 Assassin | x2 | -4/Factory | Preloaded Lgt. Particle Reactor | x2 | -4/Factory | Authchip Q-thruster | x2 | -4/Factory | Authchip Exp. Propulsion Shielding | x1 | -4/Factory Exp. Propulsion Shielding | x1 | -3/Research | Authchip Repaired ---------- Flight Unit | 65% | -9/Materials Power Sword | 35% | -6/Factory Cesium-ion Thruster | 40% | -6/Factory Greatsword | 28% | -6/Factory Nuclear Pulse Thruster | 33% | -6/Factory Q-thruster | 5% | -5/Factory Imp. Propulsion Shielding | 26% | -5/Factory VTOL Module | 32% | -5/Factory Nuclear Pulse Array | 32% | -4/Factory Impulse Thruster Array | 20% | -3/Research | Broken Alien Tech Used ----------------- Core Reset Matrix Subatomic Replicator Dimensional Node Initializer Supercharged TR Matter Drive Achievements -------------- None Challenges ------------ None Game ------ Seed ThrusterJunkNanosword Manual? 0 Play Time 06:52:39 Cumulative 444.7 hours Start 2025.08.08 @ 19:15:03 End 2025.08.10 @ 09:51:12 Sessions 5 Manual Loads 0 Difficulty Rogue Special Mode None Game No. 197 Rogue 197 Adventurer 0 Explorer 0 Win Type - Total 30 Types 12/2/5/2/5/1/0/2/0/1 Lore% 94 Gallery% 84 Achievement% 78 Wizard Run 0 Options --------- Layout 1 ASCII 0 Keyboard 0 Movement Numpad Keybinds 0 Fullscreen 1 Font 24/Smallcaps Map View 50x35 Zoom Use 0% Tactical HUD 1 Map Filters NONE Filters NONE Steam 1 RUN: 963df74b-efa5-47ea-ac2d-a3aeab3f396d